2CCN - Level 2 Cost Centre Name,,9CCN - Level 9 Cost Centre Name,9CCC - Level 9 Cost Centre Code,9AN - Level 9 Account Name,9AC - Level 9 Account Code,Transaction Description,Date Paid,Transaction Reference,Analysed Amount,2AC - Level 2 Account Codes,Supplier Name,Supplier Code
Gloucester City Council,23UE,City Museum And Art Gallery,LM200,Printing,5300,Half Term Leaflets Feb 2015,02/03/2015,398816,308,NET,Alpha Colour Printers Ltd,00945B
Gloucester City Council,23UE,Client Revs & Bens Contract,RT240,Bailiffs Fees,5368,VAT on fees collected,02/03/2015,398798,0,NET,Phoenix Commercial Collections Ltd,13435J
Gloucester City Council,23UE,Client Revs & Bens Contract,RT240,Bailiffs Fees,5368,VAT on fees collected,02/03/2015,398799,0,NET,Phoenix Commercial Collections Ltd,13435J
Gloucester City Council,23UE,Folk Museum,LM210,Printing,5300,Half Term Leaflets Feb 2015,02/03/2015,398816,308,NET,Alpha Colour Printers Ltd,00945B
Gloucester City Council,23UE,Legal Services,RS200,Basic Pay - Temporary Staff,2751,TEMPORARY STAFF,02/03/2015,398801,395.1,NET,Premiere Employment Group Ltd,55468Z
Gloucester City Council,23UE,Legal Services,RS200,Basic Pay - Temporary Staff,2751,TEMPORARY STAFF,02/03/2015,398802,55.98,NET,Premiere Employment Group Ltd,55468Z
Gloucester City Council,23UE,REDACTED,REDACTED,REDACTED,REDACTED,REDACTED,02/03/2015,REDACTED,1500,NET,REDACTED,REDACTED
Gloucester City Council,23UE,Aspire Admin Charges,LC105,Other Minor Income,9900,BAILIFF PAYMENTS 13/02/15,03/03/2015,398976,128,NET,Aspire Sports & Cultural Trust,08135V
Gloucester City Council,23UE,REDACTED,REDACTED,REDACTED,REDACTED,REDACTED,03/03/2015,REDACTED,40,NET,REDACTED,REDACTED
Gloucester City Council,23UE,Community Safety Projects,FP500,Basic Pay - Temporary Staff,2751,TEMPORARY STAFF,03/03/2015,398760,536.55,NET,Travail Employment Ltd,49371W
Gloucester City Council,23UE,Contact Centre,RB300,Basic Pay - Temporary Staff,2751,TEMPORARY STAFF,03/03/2015,398837,484.88,NET,One To One Recruitment,04752H
Gloucester City Council,23UE,REDACTED,REDACTED,REDACTED,REDACTED,REDACTED,03/03/2015,REDACTED,5669.02,CAP,REDACTED,REDACTED
Gloucester City Council,23UE,Docks Complex - Services,RB100,Cleaning Materials,3600,Cleaning Materials,03/03/2015,398826,139.33,NET,Core Hygiene Ltd,03885P
Gloucester City Council,23UE,Emergency Out Of Hours Calls,RB301,Fees For Services Received,5350,"Monthly Facility Fee, March 2015",03/03/2015,398923,226.69,NET,Office Response,09439K
Gloucester City Council,23UE,Gloucester Guildhall,LA100,Cleaning Materials,3600,Compliance Costs,03/03/2015,396207,35,NET,Ocs Group Uk Limited T/A Cannon,06506A
Gloucester City Council,23UE,REDACTED,REDACTED,REDACTED,REDACTED,REDACTED,03/03/2015,REDACTED,600,NET,REDACTED,REDACTED
Gloucester City Council,23UE,Grants To Voluntary Sector,FG100,Members Allocation Fund,7100F,Coach Hire 18/04/2015,03/03/2015,398929,155,NET,Cathedral Coaches,05201M
Gloucester City Council,23UE,Grants To Voluntary Sector,FG100,Members Allocation Fund,7100F,Visit to Skillzone,03/03/2015,398932,225,NET,Gloucestershire County Council,18650D
Gloucester City Council,23UE,REDACTED,REDACTED,REDACTED,REDACTED,REDACTED,03/03/2015,REDACTED,875,NET,REDACTED,REDACTED
Gloucester City Council,23UE,Guildhall Events,LA200,Fees For Services Received,5350,Cajun 2015,03/03/2015,398919,1562.5,NET,Edward Hotel,00141D
Gloucester City Council,23UE,Guildhall Lettings,LA400,Other Minor Supplies Services,5590,Catalogues,03/03/2015,398924,46.83,NET,Office Star Group Ltd,55874H
Gloucester City Council,23UE,Nms Contract,HI102,Other Minor Supplies Services,5590,Annual LARAC Membership,03/03/2015,398910,395,NET,Larac,56584L
Gloucester City Council,23UE,Postal Services,RS120,Postages,5400,Response Plus Licence,03/03/2015,398839,163.21,NET,Royal Mail S.Wales & South West,35830S
Gloucester City Council,23UE,Safer Stronger Communities,FP841,Other Minor Supplies Services,5590,Cables,03/03/2015,398916,460,NET,Solon Security Ltd,02010B
Gloucester City Council,23UE,REDACTED,REDACTED,REDACTED,REDACTED,REDACTED,03/03/2015,REDACTED,200,NET,REDACTED,REDACTED
Gloucester City Council,23UE,Utilities,PT502,Electricity Supply,3110,24 THE FORUM,03/03/2015,398321,69.46,NET,Npower,03929V
Gloucester City Council,23UE,Utilities,PT502,Electricity Supply,3110,ROBINSWOOD HILL,03/03/2015,398474,545.79,NET,Npower,03929V
Gloucester City Council,23UE,Vehicles,RS140,Fuel,4012,Fuel,03/03/2015,398935,110.07,NET,Allstar Business Solutions Ltd (Arval),06594A
Gloucester City Council,23UE,Cemeteries,HC300,Routine R And M - Vehicles,4011,Various Items,04/03/2015,398907,405.83,NET,Garden Machinery Gloucester,55641K
Gloucester City Council,23UE,City Museum Catering,LM202,Catering Provisions -Food,5110,Food,04/03/2015,399070,98.5,NET,Woodward Foodservice,10714F
Gloucester City Council,23UE,City Museum Catering,LM202,Catering Provisions -Food,5110,Food,04/03/2015,399071,167.2,NET,Woodward Foodservice,10714F
Gloucester City Council,23UE,City Museum Catering,LM202,Catering Provisions -Food,5110,Food,04/03/2015,399072,87.13,NET,Woodward Foodservice,10714F
Gloucester City Council,23UE,City Museum Catering,LM202,Catering Provisions -Food,5110,Food,04/03/2015,399076,101.34,NET,Woodward Foodservice,10714F
Gloucester City Council,23UE,City Museum Catering,LM202,Catering Provisions -Food,5110,Food,04/03/2015,399077,89.93,NET,Woodward Foodservice,10714F
Gloucester City Council,23UE,City Museum Catering,LM202,Catering Provisions -Food,5110,Food,04/03/2015,399078,53.22,NET,Woodward Foodservice,10714F
Gloucester City Council,23UE,City Museum Catering,LM202,Catering Provisions -Food,5110,Food,04/03/2015,399079,166.08,NET,Woodward Foodservice,10714F
Gloucester City Council,23UE,City Museum Catering,LM202,Catering Provisions -Food,5110,Milk,04/03/2015,399073,4.6,NET,Total Produce Gloucester,12645E
Gloucester City Council,23UE,City Museum Catering,LM202,Catering Provisions -Food,5110,Milk,04/03/2015,399074,4.6,NET,Total Produce Gloucester,12645E
Gloucester City Council,23UE,City Museum Catering,LM202,Catering Provisions -Food,5110,Milk,04/03/2015,399075,4.6,NET,Total Produce Gloucester,12645E
Gloucester City Council,23UE,City Museum Catering,LM202,Catering Provisions -Food,5110,Milk,04/03/2015,399080,4.6,NET,Total Produce Gloucester,12645E
Gloucester City Council,23UE,City Museum Catering,LM202,Catering Provisions -Food,5110,Milk,04/03/2015,399081,4.6,NET,Total Produce Gloucester,12645E
Gloucester City Council,23UE,City Museum Catering,LM202,Catering Provisions -Food,5110,Milk,04/03/2015,399082,4.6,NET,Total Produce Gloucester,12645E
Gloucester City Council,23UE,City Museum Catering,LM202,Catering Provisions -Food,5110,Milk,04/03/2015,399083,4.6,NET,Total Produce Gloucester,12645E
Gloucester City Council,23UE,City Museum Catering,LM202,Catering Provisions -Food,5110,Milk,04/03/2015,399084,4.6,NET,Total Produce Gloucester,12645E
Gloucester City Council,23UE,City Museum Catering,LM202,Catering Provisions -Food,5110,Milk,04/03/2015,399085,4.6,NET,Total Produce Gloucester,12645E
Gloucester City Council,23UE,City Museum Catering,LM202,Catering Provisions -Food,5110,Milk,04/03/2015,399086,4.6,NET,Total Produce Gloucester,12645E
Gloucester City Council,23UE,City Museum Catering,LM202,Catering Provisions -Food,5110,Milk,04/03/2015,399087,4.6,NET,Total Produce Gloucester,12645E
Gloucester City Council,23UE,Countryside Unit,LP201,General Repair/Maint Buildings,3000,Supply of Keyfobs,04/03/2015,398900,25,NET,Adt Fire & Security Plc,54086D
Gloucester City Council,23UE,REDACTED,REDACTED,REDACTED,REDACTED,REDACTED,04/03/2015,REDACTED,1370.65,NET,REDACTED,REDACTED
Gloucester City Council,23UE,REDACTED,REDACTED,REDACTED,REDACTED,REDACTED,04/03/2015,REDACTED,7338.45,NET,REDACTED,REDACTED
Gloucester City Council,23UE,Crematorium,HC200,Fees For Services Received,5350,Doctors Fees February 2015,04/03/2015,399111,766.88,NET,Dr R W Bell,01571P
Gloucester City Council,23UE,Crematorium,HC200,Fees For Services Received,5350,Doctors Fees February 2015,04/03/2015,399112,1298.4,NET,Dr D Martin,00890P
Gloucester City Council,23UE,Crematorium,HC200,Fees For Services Received,5350,Doctors Fees February 2015,04/03/2015,399113,1337.84,NET,Dr C M Stretton,00306P
Gloucester City Council,23UE,REDACTED,REDACTED,REDACTED,REDACTED,REDACTED,04/03/2015,REDACTED,5669.02,CAP,REDACTED,REDACTED
Gloucester City Council,23UE,Docks Complex - Services,RB100,Repair/Maint Of Fixed Plant,3006,Engineer 24/02/2015,04/03/2015,398937,210,NET,Cooltherm,06087Z
Gloucester City Council,23UE,Guildhall Bar And Caf�,LA210,Catering Provisions -Food,5110,Food,04/03/2015,399067,80.18,NET,Woodward Foodservice,10714F
Gloucester City Council,23UE,Guildhall Bar And Caf�,LA210,Catering Provisions -Food,5110,Food,04/03/2015,399068,121.18,NET,Woodward Foodservice,10714F
Gloucester City Council,23UE,Guildhall Bar And Caf�,LA210,Catering Provisions -Food,5110,Food,04/03/2015,399069,160.09,NET,Woodward Foodservice,10714F
Gloucester City Council,23UE,Guildhall Bar And Caf�,LA210,Catering Provisions -Food,5110,Milk,04/03/2015,399088,4.6,NET,Total Produce Gloucester,12645E
Gloucester City Council,23UE,Guildhall Bar And Caf�,LA210,Catering Provisions -Food,5110,Milk,04/03/2015,399089,4.6,NET,Total Produce Gloucester,12645E
Gloucester City Council,23UE,Guildhall Bar And Caf�,LA210,Catering Provisions -Food,5110,Milk,04/03/2015,399090,4.6,NET,Total Produce Gloucester,12645E
Gloucester City Council,23UE,Guildhall Bar And Caf�,LA210,Catering Provisions -Food,5110,Milk,04/03/2015,399091,4.6,NET,Total Produce Gloucester,12645E
Gloucester City Council,23UE,Guildhall Bar And Caf�,LA210,Catering Provisions -Food,5110,Milk,04/03/2015,399092,4.6,NET,Total Produce Gloucester,12645E
Gloucester City Council,23UE,Guildhall Bar And Caf�,LA210,Catering Provisions -Food,5110,Milk,04/03/2015,399093,4.6,NET,Total Produce Gloucester,12645E
Gloucester City Council,23UE,Guildhall Bar And Caf�,LA210,Catering Provisions -Food,5110,Milk,04/03/2015,399094,4.6,NET,Total Produce Gloucester,12645E
Gloucester City Council,23UE,Guildhall Bar And Caf�,LA210,Catering Provisions -Food,5110,Milk,04/03/2015,399095,4.6,NET,Total Produce Gloucester,12645E
Gloucester City Council,23UE,Guildhall Bar And Caf�,LA210,Catering Provisions -Food,5110,Milk,04/03/2015,399096,4.6,NET,Total Produce Gloucester,12645E
Gloucester City Council,23UE,Guildhall Bar And Caf�,LA210,Catering Provisions -Food,5110,Milk,04/03/2015,399097,4.6,NET,Total Produce Gloucester,12645E
Gloucester City Council,23UE,Guildhall Bar And Caf�,LA210,Catering Provisions -Food,5110,Milk,04/03/2015,399098,4.6,NET,Total Produce Gloucester,12645E
Gloucester City Council,23UE,Guildhall Bar And Caf�,LA210,Catering Provisions -Food,5110,Milk,04/03/2015,399099,4.6,NET,Total Produce Gloucester,12645E
Gloucester City Council,23UE,Guildhall Bar And Caf�,LA210,Catering Provisions -Food,5110,Milk,04/03/2015,399100,4.6,NET,Total Produce Gloucester,12645E
Gloucester City Council,23UE,Guildhall Bar And Caf�,LA210,Catering Provisions -Food,5110,Milk,04/03/2015,399101,4.6,NET,Total Produce Gloucester,12645E
Gloucester City Council,23UE,REDACTED,REDACTED,REDACTED,REDACTED,REDACTED,04/03/2015,REDACTED,275.94,NET,REDACTED,REDACTED
Gloucester City Council,23UE,REDACTED,REDACTED,REDACTED,REDACTED,REDACTED,04/03/2015,REDACTED,300,NET,REDACTED,REDACTED
Gloucester City Council,23UE,Guildhall Events,LA200,Fees For Services Received,5350,Blackfriars Logo,04/03/2015,398913,65,NET,Hanman Split Ltd,56889J
Gloucester City Council,23UE,Homelessness,CH120,Rent In Advance,5516,RIA & Deposit,04/03/2015,399109,307.44,NET,Chawda Holdings Ltd,08904N
Gloucester City Council,23UE,REDACTED,REDACTED,REDACTED,REDACTED,REDACTED,04/03/2015,REDACTED,415,NET,REDACTED,REDACTED
Gloucester City Council,23UE,Homelessness Prevention,CH122,Fees For Services Received,5350,RIA & Deposit,04/03/2015,399109,525,NET,Chawda Holdings Ltd,08904N
Gloucester City Council,23UE,REDACTED,REDACTED,REDACTED,REDACTED,REDACTED,04/03/2015,REDACTED,349.5,NET,REDACTED,REDACTED
Gloucester City Council,23UE,REDACTED,REDACTED,REDACTED,REDACTED,REDACTED,04/03/2015,REDACTED,525,NET,REDACTED,REDACTED
Gloucester City Council,23UE,Innsworth Lane Sports Pitches,LY079,Contract Payments,20,Contribution,04/03/2015,399115,9000,CAP,Longlevens Fc,12681A
Gloucester City Council,23UE,Legal Services,RS200,Basic Pay - Temporary Staff,2751,TEMPORARY STAFF,04/03/2015,397854,1325.24,NET,Venn Group Ltd,04339P
Gloucester City Council,23UE,Legal Services,RS200,Basic Pay - Temporary Staff,2751,TEMPORARY STAFF,04/03/2015,398324,1549.93,NET,Venn Group Ltd,04339P
Gloucester City Council,23UE,REDACTED,REDACTED,REDACTED,REDACTED,REDACTED,04/03/2015,REDACTED,608.49,NET,REDACTED,REDACTED
Gloucester City Council,23UE,Marchants,LT108,Materials For Sale,5080,Dec-14,04/03/2015,398905,35,NET,Marchants Coaches Ltd,48151Y
Gloucester City Council,23UE,Marchants,LT108,Materials For Sale,5080,Dec-14,04/03/2015,398906,35,NET,Marchants Coaches Ltd,48151Y
Gloucester City Council,23UE,Postal Services,RS120,Postages,5400,Window Envelopes,04/03/2015,398898,110.5,NET,Encore Envelopes Ltd,13782H
Gloucester City Council,23UE,Postal Services,RS120,Postages,5400,Window Envelopes,04/03/2015,398899,151.15,NET,Encore Envelopes Ltd,13782H
Gloucester City Council,23UE,Superbreak,LT104,Materials For Sale,5080,Heathrow 22/03/2015,04/03/2015,398912,41,NET,Superbreak Mini Holidays,00712D
Gloucester City Council,23UE,Superbreak,LT104,Sale Of Goods And Services,9230,Heathrow 22/03/2015,04/03/2015,398912,-3.42,NET,Superbreak Mini Holidays,00712D
Gloucester City Council,23UE,Tic Trading,LT110,Materials For Sale,5080,Various Items,04/03/2015,398904,112.5,NET,Awnhill,11767Y
Gloucester City Council,23UE,Aspire Admin Charges,LC105,Fees For Services Received,5350,Annual Maintenance,05/03/2015,398743,600,NET,Advanced Business Solutions,06072N
Gloucester City Council,23UE,Aspire Admin Charges,LC105,Fees For Services Received,5350,DbBacs-IP Licence,05/03/2015,398744,3000,NET,Advanced Business Solutions,06072N
Gloucester City Council,23UE,Civica Admin Charges,RT105,Postages,5400,Post 19/01 - 06/02 2015,05/03/2015,398370,1648.07,NET,Royal Mail S.Wales & South West,35830S
Gloucester City Council,23UE,Council Streetcare Team,HI101,Maint Of Grounds - General,3030,LAND DRAIN BEAUMONT RD,05/03/2015,397832,880,NET,Rj Contracting (Environmental) Ltd,07429H
Gloucester City Council,23UE,Flooding And Drainage,HE306,Maint Of Grounds - General,3030,Waste Disposal,05/03/2015,398714,395,NET,Rdb Safety Boat Ltd,13507J
Gloucester City Council,23UE,Gloucester Guildhall,LA100,General Repair/Maint Buildings,3000,Repairs,05/03/2015,399056,1285.63,NET,Audience Systems,01215P
Gloucester City Council,23UE,Guildhall Bar And Caf�,LA210,Catering Provisions -Food,5110,Food,05/03/2015,399107,160.05,NET,Woodward Foodservice,10714F
Gloucester City Council,23UE,Guildhall Bar And Caf�,LA210,Catering Provisions -Food,5110,Milk,05/03/2015,399102,4.6,NET,Total Produce Gloucester,12645E
Gloucester City Council,23UE,REDACTED,REDACTED,REDACTED,REDACTED,REDACTED,05/03/2015,REDACTED,0,NET,REDACTED,REDACTED
Gloucester City Council,23UE,REDACTED,REDACTED,REDACTED,REDACTED,REDACTED,05/03/2015,REDACTED,180,NET,REDACTED,REDACTED
Gloucester City Council,23UE,REDACTED,REDACTED,REDACTED,REDACTED,REDACTED,05/03/2015,REDACTED,120,NET,REDACTED,REDACTED
Gloucester City Council,23UE,REDACTED,REDACTED,REDACTED,REDACTED,REDACTED,05/03/2015,REDACTED,120,NET,REDACTED,REDACTED
Gloucester City Council,23UE,REDACTED,REDACTED,REDACTED,REDACTED,REDACTED,05/03/2015,REDACTED,120,NET,REDACTED,REDACTED
Gloucester City Council,23UE,Advance City Attractions,LT109,Materials For Sale,5080,February Half Term,06/03/2015,399060,22.5,NET,Alton Towers Resort,15617F
Gloucester City Council,23UE,Advance City Attractions,LT109,Sale Of Goods And Services,9230,February Half Term,06/03/2015,399060,-2.5,NET,Alton Towers Resort,15617F
Gloucester City Council,23UE,Business Planning & Performanc,RL500,Vocational Training,2970,Masterclass 27/01/2015,06/03/2015,398803,45,NET,South West Councils,56523H
Gloucester City Council,23UE,Gloucester Guildhall,LA100,Operational Equipment <5000,5012,PARTS,06/03/2015,397280,54.07,NET,Cpc,52980M
Gloucester City Council,23UE,Homelessness,CH120,Rent In Advance,5516,RIA & Deposit,06/03/2015,399160,364.6,NET,Barton & Tredworth Developments Ltd,58165T
Gloucester City Council,23UE,Homelessness Prevention,CH122,Fees For Services Received,5350,RIA & Deposit,06/03/2015,399160,500,NET,Barton & Tredworth Developments Ltd,58165T
Gloucester City Council,23UE,Registration Of Electors,RS400,Printing,5300,IER MAILINGS,06/03/2015,398307,393.09,NET,Alpha Response Print & Mail Ltd,03029U
Gloucester City Council,23UE,Shopmobility,PE200,Cleaning Materials,3600,Medical Waste Service March 2015,06/03/2015,398927,7.11,NET,Ocs Group Uk Limited T/A Cannon,06506A
Gloucester City Council,23UE,Tic Trading,LT110,Materials For Sale,5080,Flags,06/03/2015,398902,164.2,NET,Elgate,11620G
Gloucester City Council,23UE,Asset Management,RS300,Advertising And Publicity,5702,ADVERT,09/03/2015,399006,400,NET,Job Target Ltd,15515R
Gloucester City Council,23UE,Asset Management,RS300,Basic Pay - Temporary Staff,2751,Feb-15,09/03/2015,399179,6625,NET,Ardley Associates,09369F
Gloucester City Council,23UE,Business Transformation & Tech,RT700,Computer Software Maintenance,5427,Payment of Services,09/03/2015,392921,15500,NET,Civica Uk Ltd,10841X
Gloucester City Council,23UE,Cemeteries,HC300,Maint Of Grounds - General,3030,TURF,09/03/2015,399216,69,NET,Aran Turf,56656L
Gloucester City Council,23UE,Cemeteries,HC300,Operational Materials,5070,TURF,09/03/2015,399215,276,NET,Aran Turf,56656L
Gloucester City Council,23UE,City Centre Manager,PT310,Other Minor Supplies Services,5590,MEMBERSHIP,09/03/2015,399180,495,NET,Atcm,04754X
Gloucester City Council,23UE,REDACTED,REDACTED,REDACTED,REDACTED,REDACTED,09/03/2015,REDACTED,100,NET,REDACTED,REDACTED
Gloucester City Council,23UE,City Museum And Art Gallery,LM200,Uniforms,5201,SHIRTS,09/03/2015,399005,13.26,NET,Alexandra,50586R
Gloucester City Council,23UE,Civica Admin Charges,RT105,Postages,5400,Post 09/02 -20/02 2015,09/03/2015,398934,1485.09,NET,Royal Mail S.Wales & South West,35830S
Gloucester City Council,23UE,Client Revs & Bens Contract,RT240,Vocational Training,2970,COURSE 26/02/15,09/03/2015,399209,95,NET,Rossendales Training Limited,09895C
Gloucester City Council,23UE,Council Streetcare Team,HI101,Maint Of Grounds - General,3030,TREES,09/03/2015,399001,84,NET,Lodge Farm Trees,04241U
Gloucester City Council,23UE,Development Management,PT200,Contents Insurance,5700,ADVERT 26/02/15,09/03/2015,399214,409.02,NET,Local World Ltd,08556P
Gloucester City Council,23UE,Disabled Facilities Grants,CY013,Disabled Facility Grants,74,Disabled Facilities Grant MDF5134,09/03/2015,399239,3530,CAP,Tpg Disableaids,51324R
Gloucester City Council,23UE,REDACTED,REDACTED,REDACTED,REDACTED,REDACTED,09/03/2015,REDACTED,5669.02,CAP,REDACTED,REDACTED
Gloucester City Council,23UE,Docks Complex - Telephones,RB120,Telephones And Fax,5410,Foam Earcushion,09/03/2015,398911,41.39,NET,Rocom,56066R
Gloucester City Council,23UE,REDACTED,REDACTED,REDACTED,REDACTED,REDACTED,09/03/2015,REDACTED,1000,NET,REDACTED,REDACTED
Gloucester City Council,23UE,Guildhall Bar And Caf�,LA210,Catering Provisions -Food,5110,FOOD,09/03/2015,399187,40.9,NET,Janes Pantry,24500W
Gloucester City Council,23UE,Guildhall Bar And Caf�,LA210,Catering Provisions -Liquor,5111,DRINK,09/03/2015,399014,114,NET,Gloucester Brewery,13373F
Gloucester City Council,23UE,Guildhall Bar And Caf�,LA210,Catering Provisions -Liquor,5111,DRINK,09/03/2015,399015,76,NET,Gloucester Brewery,13373F
Gloucester City Council,23UE,Guildhall Bar And Caf�,LA210,Catering Provisions -Liquor,5111,DRINK,09/03/2015,399016,77.22,NET,Cellar Supplies Cheltenham Ltd,01563L
Gloucester City Council,23UE,Guildhall Bar And Caf�,LA210,Catering Provisions -Liquor,5111,DRINK,09/03/2015,399017,1354.75,NET,Cellar Supplies Cheltenham Ltd,01563L
Gloucester City Council,23UE,Guildhall Bar And Caf�,LA210,Catering Provisions -Liquor,5111,DRINK,09/03/2015,399018,1783.3,NET,Cellar Supplies Cheltenham Ltd,01563L
Gloucester City Council,23UE,Guildhall Bar And Caf�,LA210,Catering Provisions -Liquor,5111,FOOD,09/03/2015,399191,1981.82,NET,Cellar Supplies Cheltenham Ltd,01563L
Gloucester City Council,23UE,Guildhall Bar And Caf�,LA210,Hire Of Equipment,5020,CUPS,09/03/2015,399013,41.5,NET,Gerry Dance Disposables Ltd,54579Y
Gloucester City Council,23UE,Guildhall Bar And Caf�,LA210,Hire Of Equipment,5020,SERVICE,09/03/2015,399012,59,NET,Hoffs (Uk) Ltd,15003A
Gloucester City Council,23UE,Guildhall Cinema,LA202,Maintenance Of Equipment,5030,LAMP,09/03/2015,399176,635,NET,Arts Alliance Media Ltd,14477G
Gloucester City Council,23UE,REDACTED,REDACTED,REDACTED,REDACTED,REDACTED,09/03/2015,REDACTED,50,NET,REDACTED,REDACTED
Gloucester City Council,23UE,REDACTED,REDACTED,REDACTED,REDACTED,REDACTED,09/03/2015,REDACTED,550,NET,REDACTED,REDACTED
Gloucester City Council,23UE,REDACTED,REDACTED,REDACTED,REDACTED,REDACTED,09/03/2015,REDACTED,300,NET,REDACTED,REDACTED
Gloucester City Council,23UE,REDACTED,REDACTED,REDACTED,REDACTED,REDACTED,09/03/2015,REDACTED,390,NET,REDACTED,REDACTED
Gloucester City Council,23UE,REDACTED,REDACTED,REDACTED,REDACTED,REDACTED,09/03/2015,REDACTED,425,NET,REDACTED,REDACTED
Gloucester City Council,23UE,REDACTED,REDACTED,REDACTED,REDACTED,REDACTED,09/03/2015,REDACTED,0,NET,REDACTED,REDACTED
Gloucester City Council,23UE,Homelessness,CH120,Board And Lodging,5515,various tenants,09/03/2015,399231,671.73,NET,Kalmwood Ltd,08568G
Gloucester City Council,23UE,Homelessness,CH120,Board And Lodging,5515,various tenants,09/03/2015,399232,86.73,NET,Dorchester House Trust,12298D
Gloucester City Council,23UE,Homelessness,CH120,Board And Lodging,5515,various tenants,09/03/2015,399233,617.66,NET,James Legge Property (Ltd),07844R
Gloucester City Council,23UE,Homelessness,CH120,Board And Lodging,5515,various tenants,09/03/2015,399236,1157.78,NET,Carbrey Housing Ltd,11098G
Gloucester City Council,23UE,Homelessness,CH120,Board And Lodging,5515,various tenants,09/03/2015,399237,827.37,NET,Carbrey Housing Ltd,11098G
Gloucester City Council,23UE,REDACTED,REDACTED,REDACTED,REDACTED,REDACTED,09/03/2015,REDACTED,3767.99,NET,REDACTED,REDACTED
Gloucester City Council,23UE,REDACTED,REDACTED,REDACTED,REDACTED,REDACTED,09/03/2015,REDACTED,624.9,NET,REDACTED,REDACTED
Gloucester City Council,23UE,Homelessness Prevention,CH122,Basic Pay - Temporary Staff,2751,TEMPORARY STAFF,09/03/2015,399205,860.97,NET,Building Recruitment Company Ltd,55385E
Gloucester City Council,23UE,REDACTED,REDACTED,REDACTED,REDACTED,REDACTED,09/03/2015,REDACTED,400,NET,REDACTED,REDACTED
Gloucester City Council,23UE,Housing Works In Default,HD500,Clearance And Cleansing Fees,5384,CLEARANCE WORKS CHELTENHAM RD,09/03/2015,399199,375,NET,Rj Contracting (Environmental) Ltd,07429H
Gloucester City Council,23UE,Housing Works In Default,HD500,Clearance And Cleansing Fees,5384,CLEARANCE WORKS NINE ELMS RD,09/03/2015,399198,4055,NET,Rj Contracting (Environmental) Ltd,07429H
Gloucester City Council,23UE,Housing Works In Default,HD500,Clearance And Cleansing Fees,5384,STROUD RD,09/03/2015,399195,50,NET,Rj Contracting (Environmental) Ltd,07429H
Gloucester City Council,23UE,Internal Audit,RT300,Basic Pay - Temporary Staff,2751,TEMPORARY STAFF,09/03/2015,399009,778.75,NET,Robert Half Ltd,03959K
Gloucester City Council,23UE,Meet & Greet,FP309,Other Minor Income,9900,ADVERTS,09/03/2015,399178,900,NET,Diversified Business Communications Uk Ltd,15016R
Gloucester City Council,23UE,National Express,LT105,Materials For Sale,5080,SALES FEB 2015,09/03/2015,399190,10028,NET,National Express Ltd,31455K
Gloucester City Council,23UE,National Express,LT105,Sale Of Goods And Services,9230,SALES FEB 2015,09/03/2015,399190,-963.22,NET,National Express Ltd,31455K
Gloucester City Council,23UE,Postal Services,RS120,Postages,5400,ENVELOPES,09/03/2015,399200,184.9,NET,Encore Envelopes Ltd,13782H
Gloucester City Council,23UE,Printing,RP103,Printing,5300,PRINTING,09/03/2015,399213,1632.02,NET,Alpha Colour Printers Ltd,00945B
Gloucester City Council,23UE,Registration Of Electors,RS400,Fees For Services Received,5350,Feb-15,09/03/2015,398823,235,NET,Armstrong Removals,04632N
Gloucester City Council,23UE,Registration Of Electors,RS400,Fees For Services Received,5350,Storage Polling Booths Jan 2015,09/03/2015,398009,235,NET,Armstrong Removals,04632N
Gloucester City Council,23UE,Retail Market - Landlord,HM300,General Repair/Maint Buildings,3000,VISIT 16/02/15,09/03/2015,399197,39.23,NET,Mitchells (Gloucester) Ltd,30160U
Gloucester City Council,23UE,Stationery Services,RS150,Stationery,5302,STATIONERY,09/03/2015,399003,174.71,NET,Lyreco Uk Ltd,11746G
Gloucester City Council,23UE,Stationery Services,RS150,Stationery,5302,STATIONERY,09/03/2015,399004,57.18,NET,Lyreco Uk Ltd,11746G
Gloucester City Council,23UE,Tic Theatre Ticket Sales,LT107,Materials For Sale,5080,TICKET SALES,09/03/2015,399204,40,NET,Alton Towers Resort,15617F
Gloucester City Council,23UE,Tic Theatre Ticket Sales,LT107,Sale Of Goods And Services,9230,TICKET SALES,09/03/2015,399204,-5,NET,Alton Towers Resort,15617F
Gloucester City Council,23UE,Tic Trading,LT110,Trade Refuse Sacks,5040,SACKS,09/03/2015,399223,1848.8,NET,Enterprise (Aol) Ltd,06695G
Gloucester City Council,23UE,Tic Trading,LT110,Trade Refuse Sacks,5040,SACKS,09/03/2015,399224,1974.9,NET,Enterprise (Aol) Ltd,06695G
Gloucester City Council,23UE,REDACTED,REDACTED,REDACTED,REDACTED,REDACTED,09/03/2015,REDACTED,272,NET,REDACTED,REDACTED
Gloucester City Council,23UE,REDACTED,REDACTED,REDACTED,REDACTED,REDACTED,09/03/2015,REDACTED,106.25,NET,REDACTED,REDACTED
Gloucester City Council,23UE,REDACTED,REDACTED,REDACTED,REDACTED,REDACTED,09/03/2015,REDACTED,762.03,NET,REDACTED,REDACTED
Gloucester City Council,23UE,REDACTED,REDACTED,REDACTED,REDACTED,REDACTED,09/03/2015,REDACTED,178.5,NET,REDACTED,REDACTED
Gloucester City Council,23UE,REDACTED,REDACTED,REDACTED,REDACTED,REDACTED,09/03/2015,REDACTED,192.1,NET,REDACTED,REDACTED
Gloucester City Council,23UE,Asset Management,RS300,Basic Pay - Temporary Staff,2751,Project Engineer Services Feb 2015,10/03/2015,399349,4903.95,NET,Ecostep Ltd,15511Z
Gloucester City Council,23UE,Blackfriars Catering,LA220,Catering Provisions -Liquor,5111,DRINK,10/03/2015,399387,305.05,NET,Cellar Supplies Cheltenham Ltd,01563L
Gloucester City Council,23UE,Cctv Revenue Budget,FP501,Security Equipment Serv/Repair,3038,CCTV Camera Work,10/03/2015,399064,375,NET,Southern Electric Contracting Ltd,08337R
Gloucester City Council,23UE,Cctv Revenue Budget,FP501,Security Equipment Serv/Repair,3038,Maintenace of CCTV System,10/03/2015,399027,1726.67,NET,Quadrant Security Group Ltd,05109A
Gloucester City Council,23UE,Cemeteries,HC300,Maint Of Grounds - General,3030,BOOTS,10/03/2015,398999,43.52,NET,Safpro Industrial Supply Co,39190W
Gloucester City Council,23UE,Cemeteries,HC300,Operational Materials,5070,DELIVERY 04/02/15,10/03/2015,399406,715,NET,Allstone Sand & Gravel Aggregates Ltd,00940M
Gloucester City Council,23UE,Cemeteries,HC300,Printing,5300,REGISTER,10/03/2015,398987,300,NET,Shaw & Sons Ltd,40310F
Gloucester City Council,23UE,Cemeteries,HC300,Repair/Maint Of Monuments,3004,DELIVERY 24/02/15,10/03/2015,399399,472.5,NET,Easy Mix Ltd,01403L
Gloucester City Council,23UE,Cemeteries,HC300,Trade Refuse Tipping Fees,6297,DELIVERY 09/02/15,10/03/2015,399430,405,NET,Allstone Sand & Gravel Aggregates Ltd,00940M
Gloucester City Council,23UE,Cemeteries,HC300,Trade Refuse Tipping Fees,6297,DUMPER TO 27/02/15,10/03/2015,399383,380,NET,Allstone Sand & Gravel Aggregates Ltd,00940M
Gloucester City Council,23UE,Cemeteries,HC300,Trade Refuse Tipping Fees,6297,INERT WASTE,10/03/2015,399429,360,NET,Allstone Sand & Gravel Aggregates Ltd,00940M
Gloucester City Council,23UE,Cems/Crems Admin,HC100,Printing,5300,REGISTER,10/03/2015,398987,140,NET,Shaw & Sons Ltd,40310F
Gloucester City Council,23UE,City Museum Catering,LM202,Catering Provisions -Food,5110,FOOD,10/03/2015,399421,57.19,NET,Woody's Fruit & Veg,11798L
Gloucester City Council,23UE,Client Revs & Bens Contract,RT240,Bailiffs Fees,5368,VAT due on statutory fees,10/03/2015,399010,418.88,NET,Bristow & Sutor,05450M
Gloucester City Council,23UE,Client Revs & Bens Contract,RT240,Bailiffs Fees,5368,VAT due on Statutory fees,10/03/2015,399007,0,NET,Bristow & Sutor,05450M
Gloucester City Council,23UE,Client Revs & Bens Contract,RT240,Bailiffs Fees,5368,VAT on statutory fees,10/03/2015,399008,0,NET,Bristow & Sutor,05450M
Gloucester City Council,23UE,Contact Centre,RB300,Basic Pay - Temporary Staff,2751,TEMPORARY STAFF,10/03/2015,399061,468.93,NET,One To One Recruitment,04752H
Gloucester City Council,23UE,Council Streetcare Team,HI101,Maint Of Paths/Hardstandings,3056,ABBEYMEAD PARK,10/03/2015,398989,574.3,NET,Greenfields Garden Services Ltd,48130G
Gloucester City Council,23UE,Council Streetcare Team,HI101,Maint Of Paths/Hardstandings,3056,GLEVUM WAY,10/03/2015,398988,646,NET,Greenfields Garden Services Ltd,48130G
Gloucester City Council,23UE,Countryside Unit,LP201,General Repair/Maint Buildings,3000,HARDWARE,10/03/2015,399398,73.28,NET,Screwfix Direct*,54672H
Gloucester City Council,23UE,Crematorium,HC200,Equipment For Sale,5050,BENCH,10/03/2015,399202,445,NET,Codec Facilities Ltd,14338Y
Gloucester City Council,23UE,Crematorium,HC200,Memorial Plaques,5053,PLAQUES,10/03/2015,399407,348,NET,Arkell & Hurcombe,59812T
Gloucester City Council,23UE,Crematorium,HC200,Memorial Plaques,5053,PLAQUES,10/03/2015,399414,240,NET,Arkell & Hurcombe,59812T
Gloucester City Council,23UE,Crematorium,HC200,Printing,5300,REGISTER,10/03/2015,398987,114,NET,Shaw & Sons Ltd,40310F
Gloucester City Council,23UE,Development Management,PT200,Vocational Training,2970,TRAINING COURSE,10/03/2015,399411,63.75,NET,Rtpi South West Branch,51344J
Gloucester City Council,23UE,Docks Complex - Catering Servs,RB110,Catering Provisions -Food,5110,Food,10/03/2015,399380,376.64,NET,3663,55585U
Gloucester City Council,23UE,Docks Complex - Catering Servs,RB110,Catering Provisions -Food,5110,Food,10/03/2015,399381,258.01,NET,3663,55585U
Gloucester City Council,23UE,Docks Complex - Catering Servs,RB110,Catering Provisions -Food,5110,Food,10/03/2015,399382,38.13,NET,3663,55585U
Gloucester City Council,23UE,Docks Complex - Services,RB100,Repair/Maint Of Fixed Plant,3006,Investigate lack of heat to fan,10/03/2015,399105,152.5,NET,Hewer Facilities Mgt Ltd,05232A
Gloucester City Council,23UE,Docks Complex - Services,RB100,Repair/Maint Of Fixed Plant,3006,Replace Faulty crankcase heater,10/03/2015,399063,74.85,NET,Cooltherm,06087Z
Gloucester City Council,23UE,Financial Services,RT200,Consultants Fees,5349,LAMAC,10/03/2015,399397,344,NET,Gemini Consultants Ltd,52177U
Gloucester City Council,23UE,Financial Services,RT200,Consultants Fees,5349,Update Bank Details,10/03/2015,399055,2350,NET,Ash Information Systems Ltd,54890V
Gloucester City Council,23UE,Gloucester Guildhall,LA100,General Repair/Maint Buildings,3000,GUILDHALL,10/03/2015,399104,547,NET,Connect Electrical Contracting Ltd,12405D
Gloucester City Council,23UE,Guildhall Bar And Caf�,LA210,Catering Provisions -Food,5110,FOOD,10/03/2015,399392,4.96,NET,Total Produce Gloucester,12645E
Gloucester City Council,23UE,Guildhall Bar And Caf�,LA210,Catering Provisions -Food,5110,FOOD,10/03/2015,399393,4.6,NET,Total Produce Gloucester,12645E
Gloucester City Council,23UE,Guildhall Bar And Caf�,LA210,Catering Provisions -Food,5110,FOOD,10/03/2015,399394,4.6,NET,Total Produce Gloucester,12645E
Gloucester City Council,23UE,Guildhall Bar And Caf�,LA210,Catering Provisions -Food,5110,FOOD,10/03/2015,399395,4.6,NET,Total Produce Gloucester,12645E
Gloucester City Council,23UE,Guildhall Bar And Caf�,LA210,Catering Provisions -Food,5110,FOOD,10/03/2015,399396,4.6,NET,Total Produce Gloucester,12645E
Gloucester City Council,23UE,Guildhall Bar And Caf�,LA210,Catering Provisions -Food,5110,FOOD,10/03/2015,399422,148.93,NET,Woody's Fruit & Veg,11798L
Gloucester City Council,23UE,Guildhall Bar And Caf�,LA210,Catering Provisions -Food,5110,FOOD,10/03/2015,399423,4.6,NET,Total Produce Gloucester,12645E
Gloucester City Council,23UE,Guildhall Bar And Caf�,LA210,Catering Provisions -Food,5110,FOOD,10/03/2015,399424,4.6,NET,Total Produce Gloucester,12645E
Gloucester City Council,23UE,Guildhall Bar And Caf�,LA210,Catering Provisions -Liquor,5111,DRINK,10/03/2015,399389,152,NET,Gloucester Brewery,13373F
Gloucester City Council,23UE,Guildhall Bar And Caf�,LA210,Hire Of Equipment,5020,TUMBLERS,10/03/2015,399388,379.5,NET,Gerry Dance Disposables Ltd,54579Y
Gloucester City Council,23UE,REDACTED,REDACTED,REDACTED,REDACTED,REDACTED,10/03/2015,REDACTED,1000,NET,REDACTED,REDACTED
Gloucester City Council,23UE,REDACTED,REDACTED,REDACTED,REDACTED,REDACTED,10/03/2015,REDACTED,500,NET,REDACTED,REDACTED
Gloucester City Council,23UE,Homelessness,CH120,Board And Lodging,5515,Homeless Voids Dec 2014,10/03/2015,399338,2031.18,NET,Gloucester City Homes,05244T
Gloucester City Council,23UE,Homelessness,CH120,Board And Lodging,5515,Homeless Voids- Jan 2015,10/03/2015,399336,3309.17,NET,Gloucester City Homes,05244T
Gloucester City Council,23UE,Homelessness,CH120,Board And Lodging,5515,Homeless Voids- Nov 2014,10/03/2015,399337,621.82,NET,Gloucester City Homes,05244T
Gloucester City Council,23UE,Homelessness,CH120,Board And Lodging,5515,Void Loss Guarantee,10/03/2015,399339,1170.21,NET,Riverside Group Ltd,03241U
Gloucester City Council,23UE,Homelessness,CH120,Board And Lodging,5515,Void Loss Guarantee,10/03/2015,399340,1173.48,NET,Riverside Group Ltd,52301RV
Gloucester City Council,23UE,Homelessness,CH120,Removal And Storage Fees,5513,storage charges,10/03/2015,399402,90.64,NET,Advanced Removals & Storage Ltd,57142R
Gloucester City Council,23UE,Homelessness,CH120,Removal And Storage Fees,5513,storage charges,10/03/2015,399401,225,NET,Advanced Removals & Storage Ltd,57142R
Gloucester City Council,23UE,Homelessness,CH120,Removal And Storage Fees,5513,storage charges,10/03/2015,399386,193.18,NET,Advanced Removals & Storage Ltd,57142R
Gloucester City Council,23UE,Internal Audit,RT300,Basic Pay - Temporary Staff,2751,TEMPORARY STAFF,10/03/2015,399385,778.75,NET,Robert Half Ltd,03959K
Gloucester City Council,23UE,Investment Property,RB500,Repair/Maint Of Fixed Plant,3006,Boilers,10/03/2015,399106,82.5,NET,Hewer Facilities Mgt Ltd,05232A
Gloucester City Council,23UE,Kings Quarter,RY146,Contract Payments,20,ADVERT 26/02/15,10/03/2015,399203,87.65,CAP,Local World Ltd,08556P
Gloucester City Council,23UE,Legal Services,RS200,Basic Pay - Temporary Staff,2751,TEMPORARY STAFF,10/03/2015,399183,403.75,NET,Sellick Partnership Group Ltd,11057C
Gloucester City Council,23UE,Postal Services,RS120,Postages,5400,Post 13/02 - 26/02 2015,10/03/2015,399350,1016.3,NET,Royal Mail S.Wales & South West,35830S
Gloucester City Council,23UE,Registration Of Electors,RS400,Postages,5400,Business Mail Advanced,10/03/2015,399352,445.64,NET,Royal Mail S.Wales & South West,35830S
Gloucester City Council,23UE,Retail Market - Landlord,HM300,Cleaning / Domestic Equipment,5011,"Markets, Contract",10/03/2015,398642,18.93,NET,Initial Washroom Solutions,06143R
Gloucester City Council,23UE,Safer Stronger Communities,FP841,Other Minor Supplies Services,5590,CABLE,10/03/2015,399196,16.97,NET,Edmundson Electrical Ltd,13990Y
Gloucester City Council,23UE,Solace Project,FP843,Other Minor Supplies Services,5590,"February 2015, ASB",10/03/2015,398995,3250,NET,Gloucester City Homes,05244T
Gloucester City Council,23UE,Superbreak,LT104,Materials For Sale,5080,TICKET SALES,10/03/2015,398994,59,NET,Superbreak Mini Holidays,00712D
Gloucester City Council,23UE,Superbreak,LT104,Sale Of Goods And Services,9230,TICKET SALES,10/03/2015,398994,-4.91,NET,Superbreak Mini Holidays,00712D
Gloucester City Council,23UE,The Arbor,HC501,Catering Provisions -Food,5110,food,10/03/2015,398171,115.88,NET,Janes Pantry,24500W
Gloucester City Council,23UE,The Arbor,HC501,Catering Provisions -Food,5110,FOOD,10/03/2015,399189,114.67,NET,Janes Pantry,24500W
Gloucester City Council,23UE,The Arbor,HC501,Catering Provisions -Food,5110,Food w/e 15/02/2015,10/03/2015,398503,185.15,NET,Janes Pantry,24500W
Gloucester City Council,23UE,Theatre Tokens,LT106,Materials For Sale,5080,SALES FEB 2015,10/03/2015,399218,100,NET,Society Of London Theatre,05656Z
Gloucester City Council,23UE,Theatre Tokens,LT106,Sale Of Goods And Services,9230,SALES FEB 2015,10/03/2015,399218,-5,NET,Society Of London Theatre,05656Z
Gloucester City Council,23UE,Vehicles,RS140,Fuel,4012,Fuel,10/03/2015,399348,95.48,NET,Allstar Business Solutions Ltd (Arval),06594A
Gloucester City Council,23UE,Aspire Admin Charges,LC105,Other Minor Income,9900,BAILIFF PAYMENTS 20/02/15,11/03/2015,399521,14.6,NET,Aspire Sports & Cultural Trust,08135V
Gloucester City Council,23UE,Asset Management,RS300,Advertising And Publicity,5702,26/02/2015,11/03/2015,399437,1325,NET,Haymarket Media Group Ltd,56642Y
Gloucester City Council,23UE,Blackfriars,LA609,Cleaning Materials,3600,One Off Clean 28/02/2015,11/03/2015,399447,195,NET,Into Cleaning,14609P
Gloucester City Council,23UE,Blackfriars,LA609,Hire Of Equipment,5020,Chairs,11/03/2015,399311,205,NET,Valley Furniture Hire Ltd,08324P
Gloucester City Council,23UE,Blackfriars,LA609,Hire Of Equipment,5020,Wine Glasses,11/03/2015,399310,70,NET,Gloucester Event Hire,56935D
Gloucester City Council,23UE,Building Control,PT400,Basic Pay - Temporary Staff,2751,TEMPORARY STAFF,11/03/2015,398830,1656.8,NET,The Oyster Partnership Limited,14900T
Gloucester City Council,23UE,Business Support,PT250,Oper. Leases -Vehs/M. Plant,4054,Rent 31/03/15 - 30/03/16,11/03/2015,399302,1863.82,NET,Chrystal Consulting,03429X
Gloucester City Council,23UE,Business Support,PT250,Routine R And M - Vehicles,4011,Replaced front blades,11/03/2015,399467,117.49,NET,Blade Motor Company,13671U
Gloucester City Council,23UE,Cemeteries,HC300,Basic Pay - Temporary Staff,2751,TEMPORARY STAFF,11/03/2015,399403,1794,NET,Anderson Recruitment Ltd,14646H
Gloucester City Council,23UE,Cemeteries,HC300,Maint Of Grounds - General,3030,100 metres & 36 metres,11/03/2015,398665,82.8,NET,Aran Turf,56656L
Gloucester City Council,23UE,Cemeteries,HC300,Major R And M - Vehicles,4010,Annual Servicce,11/03/2015,399470,450,NET,T H White Ltd,08413P
Gloucester City Council,23UE,Cemeteries,HC300,Major R And M - Vehicles,4010,Annual Service,11/03/2015,399471,450,NET,T H White Ltd,08413P
Gloucester City Council,23UE,Cemeteries,HC300,Major R And M - Vehicles,4010,Various Items,11/03/2015,399306,792.65,NET,Garden Machinery Gloucester,55641K
Gloucester City Council,23UE,Cemeteries,HC300,Oper Leases - Equipment,5029,Rent 31/03/15 - 30/03/16,11/03/2015,399302,12121.15,NET,Chrystal Consulting,03429X
Gloucester City Council,23UE,Cemeteries,HC300,Oper. Leases -Vehs/M. Plant,4054,Rent 31/03/15 - 30/03/16,11/03/2015,399302,12725.82,NET,Chrystal Consulting,03429X
Gloucester City Council,23UE,Cemeteries,HC300,Routine R And M - Vehicles,4011,Various Items,11/03/2015,399305,330.56,NET,Garden Machinery Gloucester,55641K
Gloucester City Council,23UE,Cemeteries,HC300,Routine R And M - Vehicles,4011,Various Items,11/03/2015,399432,343.21,NET,Garden Machinery Gloucester,55641K
Gloucester City Council,23UE,Cemeteries,HC300,Routine R And M - Vehicles,4011,Various Items,11/03/2015,399433,266.48,NET,Garden Machinery Gloucester,55641K
Gloucester City Council,23UE,Cemeteries,HC300,Routine R And M - Vehicles,4011,Various Items,11/03/2015,399434,360.1,NET,Garden Machinery Gloucester,55641K
Gloucester City Council,23UE,Client Revs & Bens Contract,RT240,Bailiffs Fees,5368,CTAX,11/03/2015,399408,482.09,NET,Bristow & Sutor,05450M
Gloucester City Council,23UE,Client Revs & Bens Contract,RT240,Bailiffs Fees,5368,VAT ONLY INVOICE,11/03/2015,399409,0,NET,Bristow & Sutor,05450M
Gloucester City Council,23UE,Client Revs & Bens Contract,RT240,Fees For Services Received,5350,bailiff fees,11/03/2015,399298,49.5,NET,Assevarate Ltd,11749A
Gloucester City Council,23UE,Client Revs & Bens Contract,RT240,Fees For Services Received,5350,bailiff fees,11/03/2015,399293,49.5,NET,Assevarate Ltd,11749A
Gloucester City Council,23UE,Contact Centre,RB300,Basic Pay -Admin /Prof Staff,2601,TEMPORARY STAFF,11/03/2015,399461,360,NET,Hbhc Synergy Ltd,13363J
Gloucester City Council,23UE,Contact Centre,RB300,Uniforms,5201,Uniforms,11/03/2015,399454,77.85,NET,Meltemi Company Clothing Limited,54572N
Gloucester City Council,23UE,Corporate Reporting /Financing,RC504,Fees For Services Received,5350,Childcare Vouchers March 2015,11/03/2015,399329,20.67,NET,Wider Plan Ltd ( Formerly Kiddivouchers),07893B
Gloucester City Council,23UE,Council Streetcare Team,HI101,General Repair/Maint Buildings,3000,Labour Charge for moving plant,11/03/2015,399379,50,NET,Ermin Plant Hire & Services Ltd,14150V
Gloucester City Council,23UE,Countryside Unit,LP201,Clothing,5200,Jackets,11/03/2015,399317,25,NET,Countrywide Farmers,55687J
Gloucester City Council,23UE,Countryside Unit,LP201,Livestock Foodstuff,5841,Jackets,11/03/2015,399317,13.99,NET,Countrywide Farmers,55687J
Gloucester City Council,23UE,Countryside Unit,LP201,Routine R And M - Vehicles,4011,Battery,11/03/2015,399456,32.5,NET,Imperial Commercials (Gloucester) Ltd,12764V
Gloucester City Council,23UE,Crematorium,HC200,Cleaning Materials,3600,Disposal Unit Serviced,11/03/2015,396436,17.28,NET,Minster Cleaning Services,02158R
Gloucester City Council,23UE,Crematorium,HC200,Operational Materials,5070,Subscription 2015,11/03/2015,399439,35,NET,Pharos International,00101S
Gloucester City Council,23UE,Crematorium,HC200,"Seeds, Trees, Plants, Shrubs",3028,Standard Rose,11/03/2015,399334,28.5,NET,Genus Plant Sourcing,14143S
Gloucester City Council,23UE,Daniels Brook S106,LY120,Contract Payments,20,DANIELS BROOK,11/03/2015,398990,3720,CAP,Greenfields Garden Services Ltd,48130G
Gloucester City Council,23UE,Development Management,PT200,Advertising And Publicity,5702,advert 29/01/15,11/03/2015,399326,175.3,NET,Local World Ltd,08556P
Gloucester City Council,23UE,Development Management,PT200,Advertising And Publicity,5702,Advertisement 05/02/2015,11/03/2015,399325,467.46,NET,Local World Ltd,08556P
Gloucester City Council,23UE,Development Management,PT200,Advertising And Publicity,5702,Advertisement 05/03/2015,11/03/2015,399459,204.51,NET,Local World Ltd,08556P
Gloucester City Council,23UE,Dwelling Improvements,BY008,Contract Payments,20,Feb 2015 Capital Fee,11/03/2015,399331,324776.44,CAP,Gloucester City Homes,05244T
Gloucester City Council,23UE,Enhanced Lighting Schemes,PY118,Contract Payments,20,Architectural lighting,11/03/2015,398901,5999.58,CAP,Lite Ltd,15070J
Gloucester City Council,23UE,Financial Services,RT200,Consultants Fees,5349,consultancy expenses,11/03/2015,399303,2550,NET,Advanced Business Solutions,06072N
Gloucester City Council,23UE,Financial Services,RT200,Consultants Fees,5349,consultancy expenses,11/03/2015,399304,1700,NET,Advanced Business Solutions,06072N
Gloucester City Council,23UE,Financial Services,RT200,Vocational Training,2970,Computer based exam fees,11/03/2015,399465,36,NET,Premier Training Centre Llp,15004Y
Gloucester City Council,23UE,Flooding And Drainage,HE306,Maint Of Grounds - General,3030,Clearance Works- Jan 2015,11/03/2015,399309,360,NET,Rdb Safety Boat Ltd,13507J
Gloucester City Council,23UE,Gloscat S106,LY073,Contract Payments,20,PARK,11/03/2015,399415,6128,CAP,Greenfields Garden Services Ltd,48130G
Gloucester City Council,23UE,REDACTED,REDACTED,REDACTED,REDACTED,REDACTED,11/03/2015,REDACTED,1668,NET,REDACTED,REDACTED
Gloucester City Council,23UE,Green Transport Policy,PJ130,Overtime - Cleaners,2403,Smart for Two Coupe,11/03/2015,399443,287.35,NET,Daimler Fleet Management,07828N
Gloucester City Council,23UE,REDACTED,REDACTED,REDACTED,REDACTED,REDACTED,11/03/2015,REDACTED,75,NET,REDACTED,REDACTED
Gloucester City Council,23UE,REDACTED,REDACTED,REDACTED,REDACTED,REDACTED,11/03/2015,REDACTED,0,NET,REDACTED,REDACTED
Gloucester City Council,23UE,REDACTED,REDACTED,REDACTED,REDACTED,REDACTED,11/03/2015,REDACTED,380,NET,REDACTED,REDACTED
Gloucester City Council,23UE,Hackney Carriages,HL100,Fees For Services Received,5350,DVLA Electronic Check,11/03/2015,399458,70.25,NET,Intelligent Data Systems (Uk) Ltd,11067G
Gloucester City Council,23UE,Homelessness,CH120,Fees For Services Received,5350,Medical Advice Feb 20145,11/03/2015,399335,35,NET,Now Medical,03468L
Gloucester City Council,23UE,REDACTED,REDACTED,REDACTED,REDACTED,REDACTED,11/03/2015,REDACTED,270,NET,REDACTED,REDACTED
Gloucester City Council,23UE,REDACTED,REDACTED,REDACTED,REDACTED,REDACTED,11/03/2015,REDACTED,484.6,NET,REDACTED,REDACTED
Gloucester City Council,23UE,Homelessness Prevention,CH122,Fees For Services Received,5350,Medical Advice Feb 20145,11/03/2015,399335,110,NET,Now Medical,03468L
Gloucester City Council,23UE,REDACTED,REDACTED,REDACTED,REDACTED,REDACTED,11/03/2015,REDACTED,200,NET,REDACTED,REDACTED
Gloucester City Council,23UE,Investment Property,RB500,Lift Maintenance,3051,EASTGATE MARKET,11/03/2015,399405,93.75,NET,Pickerings Europe Ltd,58816U
Gloucester City Council,23UE,Investment Property,RB500,Subscriptions,5600,Annual Membership,11/03/2015,399448,150,NET,Cotswold Energy & Environment Group,50513V
Gloucester City Council,23UE,Legal Services,RS200,Basic Pay - Temporary Staff,2751,TEMPORARY STAFF,11/03/2015,398998,997.5,NET,Michael Page International Recruitment Ltd,06601P
Gloucester City Council,23UE,Legal Services,RS200,Basic Pay - Temporary Staff,2751,TEMPORARY STAFF,11/03/2015,398909,1549.93,NET,Venn Group Ltd,04339P
Gloucester City Council,23UE,REDACTED,REDACTED,REDACTED,REDACTED,REDACTED,11/03/2015,REDACTED,1000,NET,REDACTED,REDACTED
Gloucester City Council,23UE,Nms Contract,HI102,Contracted Services,6970,Feb-15,11/03/2015,398985,490613.67,NET,Enterprise (Aol) Ltd,06695G
Gloucester City Council,23UE,Nms Contract,HI102,Operational Equipment <5000,5012,Full Lumber 3 Lever Blue,11/03/2015,399438,48,NET,Furniture@Work Ltd,01124U
Gloucester City Council,23UE,Off Street Car Parks,PP110,General Repair/Maint Buildings,3000,Grit Bins,11/03/2015,399377,179.9,NET,Ermin Plant Hire & Services Ltd,14150V
Gloucester City Council,23UE,Off Street Car Parks,PP110,General Repair/Maint Buildings,3000,Grit Spreaders,11/03/2015,399378,278,NET,Ermin Plant Hire & Services Ltd,14150V
Gloucester City Council,23UE,Off Street Car Parks,PP110,General Repair/Maint Buildings,3000,Misc Charge- on street,11/03/2015,397435,2880,NET,Parkeon Ltd,03238G
Gloucester City Council,23UE,Off Street Car Parks,PP110,General Repair/Maint Buildings,3000,Reconfigure Barrier,11/03/2015,399472,750,NET,Mpl Wrought Iron Llp,03907P
Gloucester City Council,23UE,Parks Contract Management,LP100,Maint Of Grounds - General,3030,PALLETS,11/03/2015,399404,720,NET,Wybone Limited,13540L
Gloucester City Council,23UE,Pest Control,HD400,Oper. Leases -Vehs/M. Plant,4054,Rent 31/03/15 - 30/03/16,11/03/2015,399302,3033.51,NET,Chrystal Consulting,03429X
Gloucester City Council,23UE,Play Area Refurbishment,LY071,Contract Payments,20,GLEVUM WAY OPEN SPACE,11/03/2015,398991,1102,CAP,Greenfields Garden Services Ltd,48130G
Gloucester City Council,23UE,Pollution Control,HE300,Maint Of Grounds - General,3030,Clearance of brambles Nov & Dec 2014,11/03/2015,399327,1000,NET,"Bristol, Glos,Somerset And Wiltshire Crc Ltd",15514T
Gloucester City Council,23UE,Rehousing,CH111,Fees For Services Received,5350,Medical Advice Feb 20145,11/03/2015,399335,25,NET,Now Medical,03468L
Gloucester City Council,23UE,Retail Market - Landlord,HM300,Cleaning Materials,3600,Cleaning Materials,11/03/2015,399321,170.8,NET,Core Hygiene Ltd,03885P
Gloucester City Council,23UE,Retail Market - Landlord,HM300,Cleaning Materials,3600,Cleaning Materials,11/03/2015,399322,80.72,NET,Core Hygiene Ltd,03885P
Gloucester City Council,23UE,Safer Stronger Communities,FP841,Other Minor Supplies Services,5590,Annual Website Hosting Charge,11/03/2015,399436,995,NET,Icon.Net,52505Z
Gloucester City Council,23UE,Safer Stronger Communities,FP841,Other Minor Supplies Services,5590,Display Stand,11/03/2015,399453,267,NET,Squirty Ink,13834P
Gloucester City Council,23UE,Safer Stronger Communities,FP841,Other Minor Supplies Services,5590,T Shirts,11/03/2015,399307,92.08,NET,Leisure Lines,13017E
Gloucester City Council,23UE,Shopmobility,PE200,General Repair/Maint Buildings,3000,Fault on Auto Door,11/03/2015,399308,225,NET,Severnside Security Ltd,14661M
Gloucester City Council,23UE,Shopmobility,PE200,Office Equipment <5000,5010,Install Electric Shutter,11/03/2015,399292,1495,NET,Severnside Security Ltd,14661M
Gloucester City Council,23UE,Stationery Services,RS150,Stationery,5302,Paper,11/03/2015,399295,451,NET,Premier Paper Group Ltd,09166Y
Gloucester City Council,23UE,Utilities,PT502,Electricity Supply,3110,NAVIGATION HOUSE,11/03/2015,399142,12.75,NET,Opus Energy (Corporate),12788B
Gloucester City Council,23UE,Westgate Leisure Area S106,LY155,Contract Payments,20,WESTGATE PARK,11/03/2015,399416,1150,CAP,Greenfields Garden Services Ltd,48130G
Gloucester City Council,23UE,Asset Management,RS300,General Repair/Maint Buildings,3000,Greyfriars Bowling Club - Replace Slabs,12/03/2015,399599,34.39,NET,Rf Gardiner Limited,12299B
Gloucester City Council,23UE,Asset Management,RS300,General Repair/Maint Buildings,3000,Widden Primary School - Replace Lighting,12/03/2015,399566,2757,NET,Rf Gardiner Limited,12299B
Gloucester City Council,23UE,Bus Station,RB400,General Repair/Maint Buildings,3000,Bus Station Cafe - Drill Holes in door,12/03/2015,399674,32.84,NET,Rf Gardiner Limited,12299B
Gloucester City Council,23UE,Bus Station,RB400,General Repair/Maint Buildings,3000,Bus Station Cafe - Repair Slabs,12/03/2015,399675,315.87,NET,Rf Gardiner Limited,12299B
Gloucester City Council,23UE,Cemeteries,HC300,Maint Of Grounds - General,3030,DELIVERY 20/2/15,12/03/2015,399384,265,NET,Allstone Sand & Gravel Aggregates Ltd,00940M
Gloucester City Council,23UE,Cemeteries,HC300,Maint Of Grounds - General,3030,Spectacle,12/03/2015,399538,59.8,NET,Safpro Industrial Supply Co,39190W
Gloucester City Council,23UE,Cemeteries,HC300,Maint Of Grounds - General,3030,Stakes,12/03/2015,399562,65.83,NET,Millington & Ramstedt Ltd,29815S
Gloucester City Council,23UE,Cemeteries,HC300,Operational Materials,5070,Coney Hill Crem - Install Sockets,12/03/2015,399606,220,NET,Rf Gardiner Limited,12299B
Gloucester City Council,23UE,Cemeteries,HC300,Operational Materials,5070,Coney Hill Crem - Replace Lights,12/03/2015,399605,109.5,NET,Rf Gardiner Limited,12299B
Gloucester City Council,23UE,Cemeteries,HC300,Operational Materials,5070,TOILET ROLLS,12/03/2015,397570,66,NET,Safpro Industrial Supply Co,39190W
Gloucester City Council,23UE,City Museum And Art Gallery,LM200,Advertising And Publicity,5702,Advertisement 04/02/2015,12/03/2015,399548,100,NET,Cityscape Maps Limited,05061D
Gloucester City Council,23UE,City Museum And Art Gallery,LM200,Maint Agreements - Fixed Plant,3011,Call Out 16/11/2014,12/03/2015,399539,31,NET,Glevum Security Ltd,03249B
Gloucester City Council,23UE,City Museum And Art Gallery,LM200,Maint Agreements - Fixed Plant,3011,Call Out 17/12/2014,12/03/2015,399541,31,NET,Glevum Security Ltd,03249B
Gloucester City Council,23UE,City Museum And Art Gallery,LM200,Maint Agreements - Fixed Plant,3011,Call Out 24/11/2014,12/03/2015,399540,75,NET,Glevum Security Ltd,03249B
Gloucester City Council,23UE,Community Safety Projects,FP500,Basic Pay - Temporary Staff,2751,TEMPORARY STAFF,12/03/2015,399059,540.2,NET,Travail Employment Ltd,49371W
Gloucester City Council,23UE,Contact Centre,RB300,Fees For Services Received,5350,Additional Calls February 2015,12/03/2015,399451,3.58,NET,Office Response,09439K
Gloucester City Council,23UE,Countryside Unit,LP201,Maint Of Grounds - General,3030,Clear Debris,12/03/2015,399549,3500,NET,Jpu Services Ltd,11056K
Gloucester City Council,23UE,Docks Complex - Castlemeads Cp,RB210,Contracted Services,6970,Fixed Overhead,12/03/2015,399316,773.48,NET,Apcoa Parking (Uk) Ltd,09954M
Gloucester City Council,23UE,Docks Complex - Castlemeads Cp,RB210,Contracted Services,6970,P&D Head Cams,12/03/2015,399312,2015.89,NET,Apcoa Parking (Uk) Ltd,09954M
Gloucester City Council,23UE,Docks Complex - Castlemeads Cp,RB210,Contracted Services,6970,Variable Enforcement,12/03/2015,399313,298.75,NET,Apcoa Parking (Uk) Ltd,09954M
Gloucester City Council,23UE,Docks Complex - Castlemeads Cp,RB210,Contracted Services,6970,Vehicles,12/03/2015,399315,437.08,NET,Apcoa Parking (Uk) Ltd,09954M
Gloucester City Council,23UE,Docks Complex - Services,RB100,Cleaning Materials,3600,CLEANING GOODS,12/03/2015,399194,23.7,NET,Cleanmy Ltd,06971S
Gloucester City Council,23UE,Docks Complex - Services,RB100,Cleaning Materials,3600,Cleaning Materials,12/03/2015,399323,137.07,NET,Core Hygiene Ltd,03885P
Gloucester City Council,23UE,Docks Complex - Services,RB100,General Repair/Maint Buildings,3000,Herbert Warehouse - Change Lights,12/03/2015,399593,1947.42,NET,Rf Gardiner Limited,12299B
Gloucester City Council,23UE,Docks Complex - Services,RB100,General Repair/Maint Buildings,3000,Herbert Warehouse- Repair Lights,12/03/2015,399579,5664,NET,Rf Gardiner Limited,12299B
Gloucester City Council,23UE,Docks Complex - Services,RB100,General Repair/Maint Buildings,3000,HKP - Remove Keypad Lock,12/03/2015,399604,76.43,NET,Rf Gardiner Limited,12299B
Gloucester City Council,23UE,Docks Complex - Services,RB100,General Repair/Maint Buildings,3000,North Warehouse - Ease Garage Doors,12/03/2015,399586,49.26,NET,Rf Gardiner Limited,12299B
Gloucester City Council,23UE,Docks Complex - Services,RB100,General Repair/Maint Buildings,3000,North Warehouse - Fit Air Admittance,12/03/2015,399594,70.97,NET,Rf Gardiner Limited,12299B
Gloucester City Council,23UE,Docks Complex - Services,RB100,General Repair/Maint Buildings,3000,North Warehouse - Install Socket,12/03/2015,399603,235,NET,Rf Gardiner Limited,12299B
Gloucester City Council,23UE,Docks Complex - Services,RB100,General Repair/Maint Buildings,3000,North Warehouse - Repair Flood Lights,12/03/2015,399596,121.1,NET,Rf Gardiner Limited,12299B
Gloucester City Council,23UE,Electrical Investigatory Works,RY142,Contract Payments,20,SURVEYS,12/03/2015,399413,3987,CAP,Mss Group,14469F
Gloucester City Council,23UE,Emergency Out Of Hours Calls,RB301,Fees For Services Received,5350,Additional Calls February 2015,12/03/2015,399451,13.4,NET,Office Response,09439K
Gloucester City Council,23UE,Environmental Planning,LM340,Fees For Services Received,5350,Waste Disposal,12/03/2015,399446,215,NET,Rdb Safety Boat Ltd,13507J
Gloucester City Council,23UE,Folk Museum,LM210,Advertising And Publicity,5702,Advertisement 04/02/2015,12/03/2015,399548,100,NET,Cityscape Maps Limited,05061D
Gloucester City Council,23UE,Folk Museum,LM210,General Repair/Maint Buildings,3000,Folk Museum - Install Radiator,12/03/2015,399564,589.34,NET,Rf Gardiner Limited,12299B
Gloucester City Council,23UE,Gloucester Guildhall,LA100,General Repair/Maint Buildings,3000,30/01/2015,12/03/2015,399300,75.5,NET,Gloucester Locksmiths,18160C
Gloucester City Council,23UE,Grants To Voluntary Sector,FG100,Members Allocation Fund,7100F,Activities for young people,12/03/2015,399551,195,NET,Prospects,15524P
Gloucester City Council,23UE,REDACTED,REDACTED,REDACTED,REDACTED,REDACTED,12/03/2015,REDACTED,400,NET,REDACTED,REDACTED
Gloucester City Council,23UE,Guildhall Works,RY155,Contract Payments,20,Guildhall - Install Vent Axias,12/03/2015,399571,1212.96,CAP,Rf Gardiner Limited,12299B
Gloucester City Council,23UE,Hackney Carriages,HL100,Fees For Services Received,5350,DBS Payments,12/03/2015,391697,616,NET,Disclosure And Barring Service,00119W
Gloucester City Council,23UE,Hackney Carriages,HL100,Fees For Services Received,5350,Dec-14,12/03/2015,396457,440,NET,Disclosure And Barring Service,00119W
Gloucester City Council,23UE,Hackney Carriages,HL100,Fees For Services Received,5350,Jan-15,12/03/2015,397718,528,NET,Disclosure And Barring Service,00119W
Gloucester City Council,23UE,Hempsted Market/Car Boot,HM234,Sewerage And Environ Charges,3402,Standard Units- Hempsted Car Boot,12/03/2015,399544,408,NET,Abbey Loos Limited,10787B
Gloucester City Council,23UE,Homelessness,CH120,Fees For Services Received,5350,Telephone Interpreting,12/03/2015,399534,13.65,NET,Prime Production Ltd,06262F
Gloucester City Council,23UE,Homelessness,CH120,Fees For Services Received,5350,Telephone Interpreting,12/03/2015,399535,8.4,NET,Prime Production Ltd,06262F
Gloucester City Council,23UE,Investment Property,RB500,General Repair/Maint Buildings,3000,Bearland Lodge - Check Night Storage,12/03/2015,399672,52.56,NET,Rf Gardiner Limited,12299B
Gloucester City Council,23UE,Investment Property,RB500,General Repair/Maint Buildings,3000,Bearland Lodge - Replace Light Fitting,12/03/2015,399667,91.71,NET,Rf Gardiner Limited,12299B
Gloucester City Council,23UE,Investment Property,RB500,General Repair/Maint Buildings,3000,Blackfriars Priory - Check Water Heater,12/03/2015,399676,65.7,NET,Rf Gardiner Limited,12299B
Gloucester City Council,23UE,Investment Property,RB500,General Repair/Maint Buildings,3000,Blackfriars Priory- Repair Faulty Heater,12/03/2015,399598,253.68,NET,Rf Gardiner Limited,12299B
Gloucester City Council,23UE,Investment Property,RB500,General Repair/Maint Buildings,3000,City Museum - Fix Leaking Interceptor,12/03/2015,399587,28.62,NET,Rf Gardiner Limited,12299B
Gloucester City Council,23UE,Investment Property,RB500,General Repair/Maint Buildings,3000,City Museum- Fix Tap,12/03/2015,399583,28.62,NET,Rf Gardiner Limited,12299B
Gloucester City Council,23UE,Investment Property,RB500,General Repair/Maint Buildings,3000,City Museum - Fix Toilet,12/03/2015,399668,106.86,NET,Rf Gardiner Limited,12299B
Gloucester City Council,23UE,Investment Property,RB500,General Repair/Maint Buildings,3000,City Museum - Sump Pump,12/03/2015,399565,192.15,NET,Rf Gardiner Limited,12299B
Gloucester City Council,23UE,Investment Property,RB500,General Repair/Maint Buildings,3000,Coney Hill Crem - Attend to Fault,12/03/2015,399590,52.56,NET,Rf Gardiner Limited,12299B
Gloucester City Council,23UE,Investment Property,RB500,General Repair/Maint Buildings,3000,Coney Hill Crem - Check Heating System,12/03/2015,399588,38.16,NET,Rf Gardiner Limited,12299B
Gloucester City Council,23UE,Investment Property,RB500,General Repair/Maint Buildings,3000,Coney Hill Crem - Clear Floor,12/03/2015,399568,32.84,NET,Rf Gardiner Limited,12299B
Gloucester City Council,23UE,Investment Property,RB500,General Repair/Maint Buildings,3000,Coney Hill Crem - Install Sockets,12/03/2015,399569,205,NET,Rf Gardiner Limited,12299B
Gloucester City Council,23UE,Investment Property,RB500,General Repair/Maint Buildings,3000,Coney Hill Crem - Repair Leaks,12/03/2015,399584,150.18,NET,Rf Gardiner Limited,12299B
Gloucester City Council,23UE,Investment Property,RB500,General Repair/Maint Buildings,3000,Eastgate Market - Disconnect Electrics,12/03/2015,399671,65.7,NET,Rf Gardiner Limited,12299B
Gloucester City Council,23UE,Investment Property,RB500,General Repair/Maint Buildings,3000,Eastgate Market - Repair Faulty Lights,12/03/2015,399602,105.12,NET,Rf Gardiner Limited,12299B
Gloucester City Council,23UE,Investment Property,RB500,General Repair/Maint Buildings,3000,Eastgate Market - Replace Lights,12/03/2015,399601,466.64,NET,Rf Gardiner Limited,12299B
Gloucester City Council,23UE,Investment Property,RB500,General Repair/Maint Buildings,3000,Eastgate Market - Trace Fault on Electri,12/03/2015,399589,337.89,NET,Rf Gardiner Limited,12299B
Gloucester City Council,23UE,Investment Property,RB500,General Repair/Maint Buildings,3000,Eastgate Roof Top Car Park,12/03/2015,399580,94.92,NET,Rf Gardiner Limited,12299B
Gloucester City Council,23UE,Investment Property,RB500,General Repair/Maint Buildings,3000,Folk Museum - Replace Light Fittings,12/03/2015,399570,313.81,NET,Rf Gardiner Limited,12299B
Gloucester City Council,23UE,Investment Property,RB500,General Repair/Maint Buildings,3000,Folk Musuem - Clear Vegetation,12/03/2015,399578,41.05,NET,Rf Gardiner Limited,12299B
Gloucester City Council,23UE,Investment Property,RB500,General Repair/Maint Buildings,3000,GL1 - Install New Gasket,12/03/2015,399607,277.87,NET,Rf Gardiner Limited,12299B
Gloucester City Council,23UE,Investment Property,RB500,General Repair/Maint Buildings,3000,Grosvenor House - Empty Internal Gutter,12/03/2015,399677,38.16,NET,Rf Gardiner Limited,12299B
Gloucester City Council,23UE,Investment Property,RB500,General Repair/Maint Buildings,3000,Guildhall - Attend to Leak in Kitchen,12/03/2015,399577,19.08,NET,Rf Gardiner Limited,12299B
Gloucester City Council,23UE,Investment Property,RB500,General Repair/Maint Buildings,3000,Guildhall - Plumbing Works,12/03/2015,399670,130.6,NET,Rf Gardiner Limited,12299B
Gloucester City Council,23UE,Investment Property,RB500,General Repair/Maint Buildings,3000,Guildhall - Rod Drainage,12/03/2015,399673,28.62,NET,Rf Gardiner Limited,12299B
Gloucester City Council,23UE,Investment Property,RB500,General Repair/Maint Buildings,3000,Hempsted Meadows Market Site- Gate,12/03/2015,399567,49.26,NET,Rf Gardiner Limited,12299B
Gloucester City Council,23UE,Investment Property,RB500,General Repair/Maint Buildings,3000,HKP Warehouse - Replace Lock,12/03/2015,399608,68.22,NET,Rf Gardiner Limited,12299B
Gloucester City Council,23UE,Investment Property,RB500,General Repair/Maint Buildings,3000,Shopmobility - Fix Broken Toilet,12/03/2015,399592,123.13,NET,Rf Gardiner Limited,12299B
Gloucester City Council,23UE,Kings Quarter Redevelopment,RB600,Fees For Services Received,5350,Punchline 4 Pages Feb & Mar 2015,12/03/2015,399542,1200,NET,Moose Marketing & Pr,03952A
Gloucester City Council,23UE,Kings Square,GY017,Contract Payments,20,Kings Square Brick Planters,12/03/2015,398742,3500,CAP,Greenfields Garden Services Ltd,48130G
Gloucester City Council,23UE,Nms Contract,HI102,Additional Non-Tender Items,6973,Lifting Handles,12/03/2015,399527,450,NET,J & Hm Dickson Ltd,04119G
Gloucester City Council,23UE,Off Street Car Parks,PP110,Contracted Services,6970,Other Items,12/03/2015,399314,10824,NET,Apcoa Parking (Uk) Ltd,09954M
Gloucester City Council,23UE,Off Street Car Parks,PP110,Contracted Services,6970,Variable Enforcement,12/03/2015,399313,3662.93,NET,Apcoa Parking (Uk) Ltd,09954M
Gloucester City Council,23UE,Off Street Car Parks,PP110,General Repair/Maint Buildings,3000,Eastgate Roof Top Car Park - Repai Light,12/03/2015,399574,391.25,NET,Rf Gardiner Limited,12299B
Gloucester City Council,23UE,Off Street Car Parks,PP110,General Repair/Maint Buildings,3000,Eastgate Roof Top Car Park - Repair Cabl,12/03/2015,399669,399.03,NET,Rf Gardiner Limited,12299B
Gloucester City Council,23UE,Off Street Car Parks,PP110,General Repair/Maint Buildings,3000,Eastgate Roof Top Car Park - Unblock Gul,12/03/2015,399572,32.84,NET,Rf Gardiner Limited,12299B
Gloucester City Council,23UE,Off Street Car Parks,PP110,General Repair/Maint Buildings,3000,Kings Walk Car Park - Repair Gratings,12/03/2015,399575,32.84,NET,Rf Gardiner Limited,12299B
Gloucester City Council,23UE,Off Street Car Parks,PP110,General Repair/Maint Buildings,3000,Kings Walk Car Park - Repair Lighting,12/03/2015,399573,513.35,NET,Rf Gardiner Limited,12299B
Gloucester City Council,23UE,Off Street Car Parks,PP110,General Repair/Maint Buildings,3000,Kings Walk Car Park - Replace Lights,12/03/2015,399595,189.75,NET,Rf Gardiner Limited,12299B
Gloucester City Council,23UE,Off Street Car Parks,PP110,General Repair/Maint Buildings,3000,Kingswalk Car Park - Secure Mesh,12/03/2015,399597,32.84,NET,Rf Gardiner Limited,12299B
Gloucester City Council,23UE,Off Street Car Parks,PP110,General Repair/Maint Buildings,3000,Longsmith Street Car park - Concrete,12/03/2015,399576,58.02,NET,Rf Gardiner Limited,12299B
Gloucester City Council,23UE,Off Street Car Parks,PP110,General Repair/Maint Buildings,3000,Longsmith Street Car Park - Install Gate,12/03/2015,399600,461.6,NET,Rf Gardiner Limited,12299B
Gloucester City Council,23UE,Off Street Car Parks,PP110,General Repair/Maint Buildings,3000,Longsmith Street Car Park- Lighting,12/03/2015,399591,359.74,NET,Rf Gardiner Limited,12299B
Gloucester City Council,23UE,Off Street Car Parks,PP110,General Repair/Maint Buildings,3000,Longsmith Street Car Park - Repair Door,12/03/2015,399585,49.26,NET,Rf Gardiner Limited,12299B
Gloucester City Council,23UE,Off Street Car Parks,PP110,General Repair/Maint Buildings,3000,Longsmith Street Car Park- Unblock Gulle,12/03/2015,399582,24.63,NET,Rf Gardiner Limited,12299B
Gloucester City Council,23UE,Off Street Car Parks,PP110,General Repair/Maint Buildings,3000,Westgate Leisure Area,12/03/2015,399581,32,NET,Rf Gardiner Limited,12299B
Gloucester City Council,23UE,Retail Market - Landlord,HM300,Cleaning / Domestic Equipment,5011,Feb-15,12/03/2015,399543,18.93,NET,Initial Washroom Solutions,06143R
Gloucester City Council,23UE,Safer Stronger Communities,FP841,Other Minor Supplies Services,5590,Pens,12/03/2015,399296,619,NET,Icontact Advertising,05548T
Gloucester City Council,23UE,Superbreak,LT104,Materials For Sale,5080,Ticket sales,12/03/2015,399457,165,NET,Superbreak Mini Holidays,00712D
Gloucester City Council,23UE,Superbreak,LT104,Sale Of Goods And Services,9230,Ticket sales,12/03/2015,399457,-13.74,NET,Superbreak Mini Holidays,00712D
Gloucester City Council,23UE,Tic Trading,LT110,Materials For Sale,5080,Graphic Cap,12/03/2015,399545,937.5,NET,Sportfolio Europe Lp,14456R
Gloucester City Council,23UE,Tic Trading,LT110,Materials For Sale,5080,Polo Shirts,12/03/2015,399559,27476,NET,Sportfolio Europe Lp,14456R
Gloucester City Council,23UE,Tourism Marketing,LT100,Rents,3200,RENT MAR-MAY 2015,12/03/2015,399186,5725,NET,P W Fido & Associates,01210A
Gloucester City Council,23UE,Tourism Marketing,LT100,Window Cleaning,3610,Monthly Window Clean 28/01/2015,12/03/2015,399546,42.93,NET,Interserve Fs (Uk) Limited,00442K
Gloucester City Council,23UE,Tourism Marketing,LT100,Window Cleaning,3610,Window Cleaning Jan- Feb 2015,12/03/2015,399547,24,NET,Interserve Fs (Uk) Limited,00442K
Gloucester City Council,23UE,Business Transformation & Tech,RT700,Computer Hardware <5000,5420,Sheet Feeder,13/03/2015,399318,2434,NET,Bmi Solutions Ltd,15538C
Gloucester City Council,23UE,Business Transformation & Tech,RT700,Computer Software Maintenance,5427,Various Items,13/03/2015,398841,6204.58,NET,Cristie Data Ltd,59868N
Gloucester City Council,23UE,Disabled Facilities Grants,CY013,Disabled Facility Grants,74,Disabled Facilities Grant MDF5130,13/03/2015,399722,1935.63,CAP,Tpg Disableaids,51324R
Gloucester City Council,23UE,Docks Complex - Telephones,RB120,Telephones And Fax,5410,ACCT 505653401 FM,13/03/2015,397020,80,NET,Virgin Media Payments Ltd,09376J
Gloucester City Council,23UE,Docks Complex - Telephones,RB120,Telephones And Fax,5410,ACCT 510738303,13/03/2015,396689,13.85,NET,Virgin Media Payments Ltd,09376J
Gloucester City Council,23UE,Docks Complex - Telephones,RB120,Telephones And Fax,5410,ACCT 510738402,13/03/2015,396690,33,NET,Virgin Media Payments Ltd,09376J
Gloucester City Council,23UE,Docks Complex - Telephones,RB120,Telephones And Fax,5410,ACCT 511159201,13/03/2015,396691,80,NET,Virgin Media Payments Ltd,09376J
Gloucester City Council,23UE,Docks Complex - Telephones,RB120,Telephones And Fax,5410,ACCT 511746301 P JAMES,13/03/2015,397018,30,NET,Virgin Media Payments Ltd,09376J
Gloucester City Council,23UE,Docks Complex - Telephones,RB120,Telephones And Fax,5410,Blueyonder Feb- Mar 2015,13/03/2015,398041,80,NET,Virgin Media Payments Ltd,09376J
Gloucester City Council,23UE,Docks Complex - Telephones,RB120,Telephones And Fax,5410,Broadband charges Jan- Feb 2015,13/03/2015,396530,39,NET,Virgin Media Payments Ltd,09376J
Gloucester City Council,23UE,Docks Complex - Telephones,RB120,Telephones And Fax,5410,Broadband Feb - Mar 2015,13/03/2015,398036,39,NET,Virgin Media Payments Ltd,09376J
Gloucester City Council,23UE,Docks Complex - Telephones,RB120,Telephones And Fax,5410,Broadband Feb - Mar 2015,13/03/2015,398037,30,NET,Virgin Media Payments Ltd,09376J
Gloucester City Council,23UE,Docks Complex - Telephones,RB120,Telephones And Fax,5410,Cable Modem Feb - Mar 2015,13/03/2015,398042,33,NET,Virgin Media Payments Ltd,09376J
Gloucester City Council,23UE,Docks Complex - Telephones,RB120,Telephones And Fax,5410,Call Charges January 2015,13/03/2015,398174,2131.86,NET,Gamma Business Communications,10260A
Gloucester City Council,23UE,Docks Complex - Telephones,RB120,Telephones And Fax,5410,"Charges, Blueyonder Mar- Apr 2015",13/03/2015,398603,80,NET,Virgin Media Payments Ltd,09376J
Gloucester City Council,23UE,Docks Complex - Telephones,RB120,Telephones And Fax,5410,CHARGES DEC 2014,13/03/2015,396679,3948.11,NET,Gamma Business Communications,10260A
Gloucester City Council,23UE,Docks Complex - Telephones,RB120,Telephones And Fax,5410,CHARGES DEC 2014,13/03/2015,396686,2023.17,NET,Gamma Business Communications,10260A
Gloucester City Council,23UE,Docks Complex - Telephones,RB120,Telephones And Fax,5410,Charges Feb- Mar 2015,13/03/2015,398605,178.14,NET,Virgin Media Business,01869B
Gloucester City Council,23UE,Docks Complex - Telephones,RB120,Telephones And Fax,5410,Jan-15,13/03/2015,398147,3948.11,NET,Gamma Business Communications,10260A
Gloucester City Council,23UE,Docks Complex - Telephones,RB120,Telephones And Fax,5410,Line Rental March 2015,13/03/2015,398043,14.07,NET,Virgin Media Payments Ltd,09376J
Gloucester City Council,23UE,REDACTED,REDACTED,REDACTED,REDACTED,REDACTED,13/03/2015,REDACTED,240,NET,REDACTED,REDACTED
Gloucester City Council,23UE,REDACTED,REDACTED,REDACTED,REDACTED,REDACTED,13/03/2015,REDACTED,250,NET,REDACTED,REDACTED
Gloucester City Council,23UE,Guildhall Events,LA200,Fees For Services Received,5350,NEWSPAPERS,13/03/2015,399184,26.25,NET,W H Smith Ltd,40860M
Gloucester City Council,23UE,Guildhall Events,LA200,Fees For Services Received,5350,NEWSPAPERS,13/03/2015,399185,22.6,NET,W H Smith Ltd,40860M
Gloucester City Council,23UE,REDACTED,REDACTED,REDACTED,REDACTED,REDACTED,13/03/2015,REDACTED,364.6,NET,REDACTED,REDACTED
Gloucester City Council,23UE,Homelessness Prevention,CH122,Fees For Services Received,5350,Court Fee,13/03/2015,399723,280,NET,Steve Gooch Lettings,06370B
Gloucester City Council,23UE,REDACTED,REDACTED,REDACTED,REDACTED,REDACTED,13/03/2015,REDACTED,395,NET,REDACTED,REDACTED
Gloucester City Council,23UE,Printing,RP103,Printing,5300,PRINTING,13/03/2015,396050,607,NET,Alpha Colour Printers Ltd,00945B
Gloucester City Council,23UE,Printing,RP103,Printing,5300,Print Room Sales December 2014,13/03/2015,396187,445.89,NET,Alpha Colour Printers Ltd,00945B
Gloucester City Council,23UE,Stationery Services,RS150,Stationery,5302,Stationary,13/03/2015,398728,3.8,NET,Lyreco Uk Ltd,11746G
Gloucester City Council,23UE,Stationery Services,RS150,Stationery,5302,Stationary,13/03/2015,398729,37.93,NET,Lyreco Uk Ltd,11746G
Gloucester City Council,23UE,City Museum And Art Gallery,LM200,Catering Provisions -Food,5110,Nov-14,16/03/2015,397285,135,NET,La Spaziale Uk Ltd,11823P
Gloucester City Council,23UE,Community Safety Projects,FP500,Basic Pay - Temporary Staff,2751,TEMPORARY STAFF,16/03/2015,399460,511,NET,Travail Employment Ltd,49371W
Gloucester City Council,23UE,Corporate Reporting /Financing,RC504,Audit Fees,5383,Fourth Installment 2014/15 Audit,16/03/2015,398499,20925,NET,Kpmg,06498X
Gloucester City Council,23UE,Corporate Reporting /Financing,RC504,Audit Fees,5383,Fourth Installment 2014/15 Grants,16/03/2015,398498,2347.5,NET,Kpmg,06498X
Gloucester City Council,23UE,Docks Complex - Catering Servs,RB110,Catering Provisions -Food,5110,Food,16/03/2015,399353,14.72,NET,Total Produce Gloucester,12645E
Gloucester City Council,23UE,Docks Complex - Catering Servs,RB110,Catering Provisions -Food,5110,Food,16/03/2015,399354,22.27,NET,Total Produce Gloucester,12645E
Gloucester City Council,23UE,Docks Complex - Catering Servs,RB110,Catering Provisions -Food,5110,Food,16/03/2015,399355,8.64,NET,Total Produce Gloucester,12645E
Gloucester City Council,23UE,Docks Complex - Catering Servs,RB110,Catering Provisions -Food,5110,Food,16/03/2015,399356,19.91,NET,Total Produce Gloucester,12645E
Gloucester City Council,23UE,Docks Complex - Catering Servs,RB110,Catering Provisions -Food,5110,Food,16/03/2015,399357,8.64,NET,Total Produce Gloucester,12645E
Gloucester City Council,23UE,Docks Complex - Catering Servs,RB110,Catering Provisions -Food,5110,Food,16/03/2015,399358,41.84,NET,Total Produce Gloucester,12645E
Gloucester City Council,23UE,Docks Complex - Catering Servs,RB110,Catering Provisions -Food,5110,Food,16/03/2015,399359,34.77,NET,Total Produce Gloucester,12645E
Gloucester City Council,23UE,Docks Complex - Catering Servs,RB110,Catering Provisions -Food,5110,Food,16/03/2015,399360,13.98,NET,Total Produce Gloucester,12645E
Gloucester City Council,23UE,Docks Complex - Catering Servs,RB110,Catering Provisions -Food,5110,Food,16/03/2015,399361,30.87,NET,Total Produce Gloucester,12645E
Gloucester City Council,23UE,Docks Complex - Catering Servs,RB110,Catering Provisions -Food,5110,Food,16/03/2015,399362,26.55,NET,Total Produce Gloucester,12645E
Gloucester City Council,23UE,Docks Complex - Catering Servs,RB110,Catering Provisions -Food,5110,Food,16/03/2015,399363,33.04,NET,Total Produce Gloucester,12645E
Gloucester City Council,23UE,Docks Complex - Catering Servs,RB110,Catering Provisions -Food,5110,Food,16/03/2015,399364,17.83,NET,Total Produce Gloucester,12645E
Gloucester City Council,23UE,Docks Complex - Catering Servs,RB110,Catering Provisions -Food,5110,Food,16/03/2015,399365,9.45,NET,Total Produce Gloucester,12645E
Gloucester City Council,23UE,Docks Complex - Catering Servs,RB110,Catering Provisions -Food,5110,Food,16/03/2015,399366,8.64,NET,Total Produce Gloucester,12645E
Gloucester City Council,23UE,Docks Complex - Catering Servs,RB110,Catering Provisions -Food,5110,Food,16/03/2015,399367,24.95,NET,Total Produce Gloucester,12645E
Gloucester City Council,23UE,Docks Complex - Catering Servs,RB110,Catering Provisions -Food,5110,Food,16/03/2015,399368,49.74,NET,Total Produce Gloucester,12645E
Gloucester City Council,23UE,Docks Complex - Catering Servs,RB110,Catering Provisions -Food,5110,Food,16/03/2015,399369,8.64,NET,Total Produce Gloucester,12645E
Gloucester City Council,23UE,Docks Complex - Catering Servs,RB110,Catering Provisions -Food,5110,Food,16/03/2015,399370,22.69,NET,Total Produce Gloucester,12645E
Gloucester City Council,23UE,Docks Complex - Catering Servs,RB110,Catering Provisions -Food,5110,Food,16/03/2015,399371,48.61,NET,Total Produce Gloucester,12645E
Gloucester City Council,23UE,Docks Complex - Catering Servs,RB110,Catering Provisions -Food,5110,Food,16/03/2015,399372,8.64,NET,Total Produce Gloucester,12645E
Gloucester City Council,23UE,Docks Complex - Catering Servs,RB110,Catering Provisions -Food,5110,Food,16/03/2015,399373,27.83,NET,Total Produce Gloucester,12645E
Gloucester City Council,23UE,Docks Complex - Catering Servs,RB110,Catering Provisions -Food,5110,Food,16/03/2015,399374,23.87,NET,Total Produce Gloucester,12645E
Gloucester City Council,23UE,Docks Complex - Catering Servs,RB110,Catering Provisions -Food,5110,Food,16/03/2015,399375,27.73,NET,Total Produce Gloucester,12645E
Gloucester City Council,23UE,Docks Complex - Services,RB100,Catering Provisions -Food,5110,Food w/e 08/03/2015,16/03/2015,399450,92.32,NET,Janes Pantry,24500W
Gloucester City Council,23UE,Docks Complex - Services,RB100,Display Energy Report,3068,Energy Certificate Renewals,16/03/2015,399524,640.5,NET,Rider Levett Bucknall Uk Ltd,06602D
Gloucester City Council,23UE,Docks Complex - Services,RB100,General Repair/Maint Buildings,3000,Replace Pump- North Warehouse,16/03/2015,399552,570.8,NET,Hewer Facilities Mgt Ltd,05232A
Gloucester City Council,23UE,Docks Complex - Services,RB100,Service Charges,3020,12 Months Service from May 15,16/03/2015,399525,1100,NET,Pyramid Hygiene Ltd,01897B
Gloucester City Council,23UE,Flooding And Drainage,HE306,Maint Of Grounds - General,3030,"Farriers End, 09/12/2014",16/03/2015,398647,80,NET,Three Counties Drain Service,44033V
Gloucester City Council,23UE,Guildhall Bar And Caf�,LA210,Catering Provisions -Food,5110,FOOD,16/03/2015,399002,72,NET,Winstones Ice Cream Ltd,56347D
Gloucester City Council,23UE,Guildhall Bar And Caf�,LA210,Catering Provisions -Food,5110,FOOD,16/03/2015,399427,181.8,NET,Woodward Foodservice,10714F
Gloucester City Council,23UE,Guildhall Bar And Caf�,LA210,Catering Provisions -Food,5110,Milk,16/03/2015,399466,4.6,NET,Total Produce Gloucester,12645E
Gloucester City Council,23UE,Guildhall Bar And Caf�,LA210,Catering Provisions -Liquor,5111,GAS,16/03/2015,397569,8.38,NET,Boc Ltd,59172L
Gloucester City Council,23UE,Guildhall Bar And Caf�,LA210,Catering Provisions -Liquor,5111,GAS,16/03/2015,399000,8.38,NET,Boc Ltd,59172L
Gloucester City Council,23UE,Guildhall Bar And Caf�,LA210,Hire Of Equipment,5020,TUMBLERS,16/03/2015,398138,260.5,NET,Gerry Dance Disposables Ltd,54579Y
Gloucester City Council,23UE,Guildhall Cinema,LA202,Advertising And Publicity,5702,Cinema Loyalty Cards,16/03/2015,399320,89,NET,Paddock Print,03014H
Gloucester City Council,23UE,REDACTED,REDACTED,REDACTED,REDACTED,REDACTED,16/03/2015,REDACTED,170.11,NET,REDACTED,REDACTED
Gloucester City Council,23UE,REDACTED,REDACTED,REDACTED,REDACTED,REDACTED,16/03/2015,REDACTED,129.5,NET,REDACTED,REDACTED
Gloucester City Council,23UE,REDACTED,REDACTED,REDACTED,REDACTED,REDACTED,16/03/2015,REDACTED,368.96,NET,REDACTED,REDACTED
Gloucester City Council,23UE,REDACTED,REDACTED,REDACTED,REDACTED,REDACTED,16/03/2015,REDACTED,74.04,NET,REDACTED,REDACTED
Gloucester City Council,23UE,REDACTED,REDACTED,REDACTED,REDACTED,REDACTED,16/03/2015,REDACTED,25.96,NET,REDACTED,REDACTED
Gloucester City Council,23UE,Homelessness Prevention,CH122,Basic Pay - Temporary Staff,2751,TEMPORARY STAFF,16/03/2015,398373,891,NET,Building Recruitment Company Ltd,55385E
Gloucester City Council,23UE,Homelessness Prevention,CH122,Basic Pay - Temporary Staff,2751,TEMPORARY STAFF,16/03/2015,397335,941.65,NET,Building Recruitment Company Ltd,55385E
Gloucester City Council,23UE,Licences,HE510,Reimbursements,5591,Refund - Permit Fee,16/03/2015,399751,50,NET,Poppleston Allen Licensing Solicitors,58948Z
Gloucester City Council,23UE,National Express,LT105,Materials For Sale,5080,Ticket Sales - 'Private Peaceful',16/03/2015,399752,214,NET,Kings Theatre,54213X
Gloucester City Council,23UE,National Express,LT105,Sale Of Goods And Services,9230,Ticket Sales - 'Private Peaceful',16/03/2015,399752,-17.83,NET,Kings Theatre,54213X
Gloucester City Council,23UE,Nms Contract,HI102,Clearance And Cleansing Fees,5384,Remove Waste for New Street,16/03/2015,399319,220,NET,Rj Contracting (Environmental) Ltd,07429H
Gloucester City Council,23UE,Client Revs & Bens Contract,RT240,Fees For Services Received,5350,CTAX CARDS,17/03/2015,397294,869.5,NET,Thames Card Technology Ltd,54199N
Gloucester City Council,23UE,Council Streetcare Team,HI101,Maint Of Grounds - General,3030,Padlocks,17/03/2015,399440,92,NET,London Tools Ltd,13538X
Gloucester City Council,23UE,Council Streetcare Team,HI101,Operational Equipment <5000,5012,Disposal Suits,17/03/2015,399441,16.5,NET,London Tools Ltd,13538X
Gloucester City Council,23UE,Docks Complex - Catering Servs,RB110,General Repair/Maint Buildings,3000,Lincat Water Boiler,17/03/2015,399062,123.19,NET,Aim Commercial Catering Equipment Services,15146A
Gloucester City Council,23UE,Electrical Investigatory Works,RY142,Contract Payments,20,MAR-MAY 2015,17/03/2015,399400,3146.25,CAP,Kingfisher Environmental Services Ltd,04738V
Gloucester City Council,23UE,Events,LT410,Events,5952,21/01/2015 Advertisement,17/03/2015,398824,2500,NET,Local World Ltd,08556P
Gloucester City Council,23UE,REDACTED,REDACTED,REDACTED,REDACTED,REDACTED,17/03/2015,REDACTED,1625.27,NET,REDACTED,REDACTED
Gloucester City Council,23UE,REDACTED,REDACTED,REDACTED,REDACTED,REDACTED,17/03/2015,REDACTED,0,NET,REDACTED,REDACTED
Gloucester City Council,23UE,Homelessness,CH120,Rent In Advance,5516,RIA & Deposit,17/03/2015,399874,484.6,NET,2 Let Glos Ltd,07066Y
Gloucester City Council,23UE,Homelessness Prevention,CH122,Fees For Services Received,5350,RIA & Deposit,17/03/2015,399874,525,NET,2 Let Glos Ltd,07066Y
Gloucester City Council,23UE,Investment Property,RB500,Advertising And Publicity,5702,Advertisement 04/03/2015,17/03/2015,399444,350.59,NET,Local World Ltd,08556P
Gloucester City Council,23UE,Bus Station,RB400,Water Supply,3400,ACCT 7890105225,18/03/2015,399141,125.1,NET,Severn Trent Water,01823H
Gloucester City Council,23UE,REDACTED,REDACTED,REDACTED,REDACTED,REDACTED,18/03/2015,REDACTED,160,NET,REDACTED,REDACTED
Gloucester City Council,23UE,City Museum And Art Gallery,LM200,Water Supply,3400,ACCT 7890105225,18/03/2015,399141,621.65,NET,Severn Trent Water,01823H
Gloucester City Council,23UE,City Museum Catering,LM202,Catering Provisions -Food,5110,Machine Rental Feb 20145,18/03/2015,399526,135,NET,La Spaziale Uk Ltd,11823P
Gloucester City Council,23UE,Civica Contract Revs & Bens,RT250,Contracted Services,6970,Pension Excess Reclaim February 2015,18/03/2015,399842,12425.57,NET,Civica Uk Ltd,10841X
Gloucester City Council,23UE,Civica It Contract,RT270,Contracted Services,6970,Pension Excess Reclaim February 2015,18/03/2015,399841,712.04,NET,Civica Uk Ltd,10841X
Gloucester City Council,23UE,Council Streetcare Team,HI101,Maint Of Grounds - General,3030,LOBLEYS DRIVE,18/03/2015,398313,280,NET,Three Counties Drain Service,44033V
Gloucester City Council,23UE,Council Streetcare Team,HI101,Water Supply,3400,ACCT 7890105225,18/03/2015,399141,76.87,NET,Severn Trent Water,01823H
Gloucester City Council,23UE,Countryside Unit,LP201,Maint Of Grounds - General,3030,Repairs,18/03/2015,399828,12100,NET,Loxston Groundcare,14309F
Gloucester City Council,23UE,Crematorium,HC200,Water Supply,3400,ACCT 7890105225,18/03/2015,399141,27.87,NET,Severn Trent Water,01823H
Gloucester City Council,23UE,Docks Complex - Telephones,RB120,Telephones And Fax,5410,ACCT 814639,18/03/2015,397028,185.3,NET,Virgin Media Business,01869B
Gloucester City Council,23UE,Docks Complex - Telephones,RB120,Telephones And Fax,5410,Rental Charges,18/03/2015,398040,10,NET,Virgin Media Business,01869B
Gloucester City Council,23UE,REDACTED,REDACTED,REDACTED,REDACTED,REDACTED,18/03/2015,REDACTED,75,NET,REDACTED,REDACTED
Gloucester City Council,23UE,REDACTED,REDACTED,REDACTED,REDACTED,REDACTED,18/03/2015,REDACTED,100,NET,REDACTED,REDACTED
Gloucester City Council,23UE,REDACTED,REDACTED,REDACTED,REDACTED,REDACTED,18/03/2015,REDACTED,100,NET,REDACTED,REDACTED
Gloucester City Council,23UE,REDACTED,REDACTED,REDACTED,REDACTED,REDACTED,18/03/2015,REDACTED,964.9,NET,REDACTED,REDACTED
Gloucester City Council,23UE,REDACTED,REDACTED,REDACTED,REDACTED,REDACTED,18/03/2015,REDACTED,100.77,NET,REDACTED,REDACTED
Gloucester City Council,23UE,REDACTED,REDACTED,REDACTED,REDACTED,REDACTED,18/03/2015,REDACTED,375.63,NET,REDACTED,REDACTED
Gloucester City Council,23UE,REDACTED,REDACTED,REDACTED,REDACTED,REDACTED,18/03/2015,REDACTED,144.81,NET,REDACTED,REDACTED
Gloucester City Council,23UE,REDACTED,REDACTED,REDACTED,REDACTED,REDACTED,18/03/2015,REDACTED,147,NET,REDACTED,REDACTED
Gloucester City Council,23UE,REDACTED,REDACTED,REDACTED,REDACTED,REDACTED,18/03/2015,REDACTED,90,NET,REDACTED,REDACTED
Gloucester City Council,23UE,REDACTED,REDACTED,REDACTED,REDACTED,REDACTED,18/03/2015,REDACTED,1526.42,NET,REDACTED,REDACTED
Gloucester City Council,23UE,REDACTED,REDACTED,REDACTED,REDACTED,REDACTED,18/03/2015,REDACTED,1400,NET,REDACTED,REDACTED
Gloucester City Council,23UE,REDACTED,REDACTED,REDACTED,REDACTED,REDACTED,18/03/2015,REDACTED,125,NET,REDACTED,REDACTED
Gloucester City Council,23UE,Guildhall Events,LA200,Fees For Services Received,5350,'The Wurzels' Event 22/11/2014,18/03/2015,399858,193.88,NET,Leap Audio,15059W
Gloucester City Council,23UE,REDACTED,REDACTED,REDACTED,REDACTED,REDACTED,18/03/2015,REDACTED,280,NET,REDACTED,REDACTED
Gloucester City Council,23UE,Internal Audit,RT300,Basic Pay - Temporary Staff,2751,TEMPORARY STAFF,18/03/2015,399860,778.75,NET,Robert Half Ltd,03959K
Gloucester City Council,23UE,Investment Property,RB500,Fire Alarms,3027,CITY MUSEUM,18/03/2015,398310,42.75,NET,Secom Plc,51471A
Gloucester City Council,23UE,Investment Property,RB500,Fire Alarms,3027,CITY MUSUEM,18/03/2015,398311,311.37,NET,Secom Plc,51471A
Gloucester City Council,23UE,Investment Property,RB500,Water Supply,3400,ACCT 7890105225,18/03/2015,399141,1963.81,NET,Severn Trent Water,01823H
Gloucester City Council,23UE,Off Street Car Parks,PP110,Water Supply,3400,ACCT 7890105225,18/03/2015,399141,1012.7,NET,Severn Trent Water,01823H
Gloucester City Council,23UE,Public Conveniences (Client),HI400,Water Supply,3400,ACCT 7890105225,18/03/2015,399141,1153.21,NET,Severn Trent Water,01823H
Gloucester City Council,23UE,Shopmobility,PE200,Water Supply,3400,ACCT 7890105225,18/03/2015,399141,199.31,NET,Severn Trent Water,01823H
Gloucester City Council,23UE,Building Control,PT400,Basic Pay - Temporary Staff,2751,TEMPORARY STAFF,19/03/2015,399410,1645.8,NET,The Oyster Partnership Limited,14900T
Gloucester City Council,23UE,Business Transformation & Tech,RT700,Fees For Services Received,5350,chp,19/03/2015,398221,14905.33,NET,Cogenco Ltd,06075G
Gloucester City Council,23UE,Cemeteries,HC300,Routine R And M - Vehicles,4011,Various Items,19/03/2015,399808,130.22,NET,Garden Machinery Gloucester,55641K
Gloucester City Council,23UE,Community Safety Projects,FP500,Basic Pay - Temporary Staff,2751,TEMPORARY STAFF,19/03/2015,399865,627.8,NET,Travail Employment Ltd,49371W
Gloucester City Council,23UE,Hempsted Market/Car Boot,HM234,Hire Of Equipment,5020,Feb-15,19/03/2015,398012,254.19,NET,Portable Offices (Hire ) Ltd,06286R
Gloucester City Council,23UE,Homelessness,CH120,Board And Lodging,5515,1 Night 29/12/2014,19/03/2015,399826,20,NET,Carbrey Housing Ltd,11098G
Gloucester City Council,23UE,Legal Services,RS200,Basic Pay - Temporary Staff,2751,TEMPORARY STAFF,19/03/2015,399537,822.5,NET,Michael Page International Recruitment Ltd,06601P
Gloucester City Council,23UE,Legal Services,RS200,Basic Pay - Temporary Staff,2751,TEMPORARY STAFF,19/03/2015,399420,1549.93,NET,Venn Group Ltd,04339P
Gloucester City Council,23UE,Postal Services,RS120,Postages,5400,Response Plus Service,19/03/2015,399850,53.32,NET,Royal Mail S.Wales & South West,35830S
Gloucester City Council,23UE,Retail Market - Landlord,HM300,Operational Equipment <5000,5012,Feb-15,19/03/2015,398146,280.56,NET,System Rental Uk Ltd,03239E
Gloucester City Council,23UE,Retail Market - Landlord,HM300,Trade Refuse Collection,3630,Food Waste February 2015,19/03/2015,399028,120,NET,B & S Pointon Ltd,06253G
Gloucester City Council,23UE,S106 Monk Meadow Pos,LY158,Contract Payments,20,Turning Bars,19/03/2015,399816,7763,CAP,Kompan Ltd,03575J
Gloucester City Council,23UE,Stationery Services,RS150,Stationery,5302,Legal Seals,19/03/2015,399809,30.45,NET,Shaw & Sons Ltd,40310F
Gloucester City Council,23UE,Tourism Marketing,LT100,Advertising And Publicity,5702,STANDS,19/03/2015,399412,307.05,NET,Display Sense,09632P
Gloucester City Council,23UE,Tourism Marketing,LT100,Operational Equipment <5000,5012,STANDS,19/03/2015,399412,200,NET,Display Sense,09632P
Gloucester City Council,23UE,Business Transformation & Tech,RT700,Computer Software Maintenance,5427,SOFTWARE RENEWAL,20/03/2015,397571,9136.65,NET,Pnltools Ltd,08345R
Gloucester City Council,23UE,Business Transformation & Tech,RT700,Subscriptions,5600,Open Enterprise Agreement,20/03/2015,399843,6000,NET,Astun Technology Ltd,09668S
Gloucester City Council,23UE,Cemeteries,HC300,Operational Materials,5070,Building Block Planter,20/03/2015,388381,315,NET,The Columbaria Company,55078T
Gloucester City Council,23UE,Cemeteries,HC300,Repair/Maint Of Monuments,3004,Building Block Planter,20/03/2015,388381,90,NET,The Columbaria Company,55078T
Gloucester City Council,23UE,Civica Contract Revs & Bens,RT250,Contracted Services,6970,APRIL 2015 REVS & BENS,20/03/2015,399024,138572.7,NET,Civica Uk Ltd,10841X
Gloucester City Council,23UE,Civic Admin And Hospitality,RC210,Other Minor Supplies Services,5590,Calligraphy,20/03/2015,399550,95,NET,Geoff C Cook Picture Framing,58727U
Gloucester City Council,23UE,Civica It Contract,RT270,Contracted Services,6970,IT APRIL 2015,20/03/2015,399026,47916.72,NET,Civica Uk Ltd,10841X
Gloucester City Council,23UE,Contact Centre,RB300,Basic Pay - Temporary Staff,2751,TEMPORARY STAFF,20/03/2015,399859,468.93,NET,One To One Recruitment,04752H
Gloucester City Council,23UE,Council Streetcare Team,HI101,Window Cleaning,3610,Window Cleaning Feb 2015,20/03/2015,399328,120,NET,Poles Apart Window Cleaning,11636R
Gloucester City Council,23UE,Crematorium,HC200,Cleaning Materials,3600,Disposal Unit,20/03/2015,399532,17.28,NET,Minster Cleaning Services,02158R
Gloucester City Council,23UE,Legal Services,RS200,Basic Pay - Temporary Staff,2751,TEMPORARY STAFF,20/03/2015,399206,988.75,NET,Michael Page International Recruitment Ltd,06601P
Gloucester City Council,23UE,Nms Contract,HI102,Operational Materials,5070,Purple Sacks,20/03/2015,399811,903,NET,Polystar Plastics Ltd,01120C
Gloucester City Council,23UE,REDACTED,REDACTED,REDACTED,REDACTED,REDACTED,20/03/2015,REDACTED,210,NET,REDACTED,REDACTED
Gloucester City Council,23UE,REDACTED,REDACTED,REDACTED,REDACTED,REDACTED,20/03/2015,REDACTED,-2,NET,REDACTED,REDACTED
Gloucester City Council,23UE,REDACTED,REDACTED,REDACTED,REDACTED,REDACTED,20/03/2015,REDACTED,-8.75,NET,REDACTED,REDACTED
Gloucester City Council,23UE,Vehicles,RS140,Fuel,4012,Fuel,20/03/2015,399853,423.88,NET,Allstar Business Solutions Ltd (Arval),06594A
Gloucester City Council,23UE,Cemeteries,HC300,Operational Materials,5070,Ignition Keys,23/03/2015,399806,42.12,NET,Garden Machinery Gloucester,55641K
Gloucester City Council,23UE,Cemeteries,HC300,Routine R And M - Vehicles,4011,Various Items,23/03/2015,399807,359.07,NET,Garden Machinery Gloucester,55641K
Gloucester City Council,23UE,Crematorium,HC200,General Repair/Maint Buildings,3000,Kingston 8GB Traveler USB Key,23/03/2015,399805,90,NET,Revolution Multimedia,07880L
Gloucester City Council,23UE,Crematorium,HC200,Memorial Plaques,5053,Plaque,23/03/2015,399801,70,NET,Steel & Stone (York),57204U
Gloucester City Council,23UE,The Arbor,HC501,Catering Provisions -Food,5110,Food w/e 22/02/2015,23/03/2015,398737,106.99,NET,Janes Pantry,24500W
Gloucester City Council,23UE,The Arbor,HC501,Cleaning Materials,3600,Disposal Units,23/03/2015,396432,34.56,NET,Minster Cleaning Services,02158R
Gloucester City Council,23UE,The Arbor,HC501,Cleaning Materials,3600,Feb-15,23/03/2015,398159,34.56,NET,Minster Cleaning Services,02158R
Gloucester City Council,23UE,The Arbor,HC501,Maint Agreements - Buildings,3010,Monthly Machine Warranty,23/03/2015,398920,61.58,NET,Caffeica Ltd,11923J
Gloucester City Council,23UE,The Arbor,HC501,Maint Agreements - Buildings,3010,WARRANTY,23/03/2015,397299,61.58,NET,Caffeica Ltd,11923J
Gloucester City Council,23UE,Aspire Admin Charges,LC105,Contracted Services,6970,Monthly Charge March 2015,24/03/2015,399818,71458.92,NET,Aspire Sports & Cultural Trust,08135V
Gloucester City Council,23UE,Asset Management,RS300,Licences,5703,Annual Rental Fee,24/03/2015,399783,1325,NET,Kel,13644X
Gloucester City Council,23UE,REDACTED,REDACTED,REDACTED,REDACTED,REDACTED,24/03/2015,REDACTED,325,NET,REDACTED,REDACTED
Gloucester City Council,23UE,Building Control,PT400,Subscriptions,5600,LABC 2015/16,24/03/2015,399939,1925.57,NET,Labc,05276D
Gloucester City Council,23UE,Business Support,PT250,Publications,5060,NEWSPAPERS,24/03/2015,399933,157.8,NET,Ymk Supermarket,55281U
Gloucester City Council,23UE,Cemeteries,HC300,Maint Of Grounds - General,3030,PIPE,24/03/2015,399940,15.94,NET,Garden Machinery Gloucester,55641K
Gloucester City Council,23UE,Cemeteries,HC300,Routine R And M - Vehicles,4011,REPAIRS,24/03/2015,399934,414.03,NET,Garden Machinery Gloucester,55641K
Gloucester City Council,23UE,Cemeteries,HC300,Routine R And M - Vehicles,4011,REPAIRS,24/03/2015,399942,149.39,NET,Garden Machinery Gloucester,55641K
Gloucester City Council,23UE,Cems/Crems Admin,HC100,Office Equipment <5000,5010,Ink for printer,24/03/2015,399799,21.35,NET,Office Star Group Ltd,55874H
Gloucester City Council,23UE,City Museum And Art Gallery,LM200,Events,5952,4 Hours Reptile Experience,24/03/2015,399775,250,NET,Roaming Reptiles,15440X
Gloucester City Council,23UE,Civica Admin Charges,RT105,Fees For Services Received,5350,CHD Subscription,24/03/2015,399324,4,NET,Companies House,58954E
Gloucester City Council,23UE,Council Streetcare Team,HI101,Maint Of Grounds - General,3030,CONEY HILL PLAYING FIELD,24/03/2015,399951,297.32,NET,Greenfields Garden Services Ltd,48130G
Gloucester City Council,23UE,Crematorium,HC200,Repair/Maint Of Monuments,3004,Tablet,24/03/2015,399781,90,NET,The Columbaria Company,55078T
Gloucester City Council,23UE,Development Management,PT200,Fees For Services Received,5350,PROFESSIONAL FEES,24/03/2015,399946,6700,NET,Kings Chambers,14473R
Gloucester City Council,23UE,Development Management,PT200,Microfilming / Cd-Rom Storage,5330,Storage Feb 2015,24/03/2015,399792,36.58,NET,Transmedia Technology Ltd,08635T
Gloucester City Council,23UE,Docks Complex - Services,RB100,Cleaning Materials,3600,CLEANING GOODS,24/03/2015,399944,50.77,NET,Core Hygiene Ltd,03885P
Gloucester City Council,23UE,Financial Services,RT200,Consultants Fees,5349,EXPENSES,24/03/2015,399931,170.02,NET,Advanced Business Solutions,06072N
Gloucester City Council,23UE,Food Safety,HE100,Vocational Training,2970,CATERING,24/03/2015,399957,28,NET,Stroud District Council,42500D
Gloucester City Council,23UE,Grants To Voluntary Sector,FG100,Members Allocation Fund,7100F,Grant towards shelter materials,24/03/2015,399773,400,NET,Friendship Cafe,59375U
Gloucester City Council,23UE,REDACTED,REDACTED,REDACTED,REDACTED,REDACTED,24/03/2015,REDACTED,480,NET,REDACTED,REDACTED
Gloucester City Council,23UE,Homelessness Prevention,CH122,Advertising And Publicity,5702,ADVERTS,24/03/2015,399959,900,NET,Local World Ltd,08556P
Gloucester City Council,23UE,Homelessness Prevention,CH122,Basic Pay - Temporary Staff,2751,TEMPORARY STAFF,24/03/2015,399849,952.08,NET,Building Recruitment Company Ltd,55385E
Gloucester City Council,23UE,REDACTED,REDACTED,REDACTED,REDACTED,REDACTED,24/03/2015,REDACTED,525,NET,REDACTED,REDACTED
Gloucester City Council,23UE,Housing Strategy & Enabling,CH110,Advertising And Publicity,5702,RECRUITMENT ADVERT,24/03/2015,399797,650,NET,Inside Housing Solutions Ltd,09968A
Gloucester City Council,23UE,Legal Services,RS200,Basic Pay - Temporary Staff,2751,TEMPORARY STAFF,24/03/2015,399417,418.15,NET,Premiere Employment Group Ltd,55468Z
Gloucester City Council,23UE,Registration Of Electors,RS400,Fees For Services Received,5350,CTAX BOOKLETS,24/03/2015,399935,1414.16,NET,Cheltenham Borough Council,04176B
Gloucester City Council,23UE,Registration Of Electors,RS400,Postages,5400,ACCT 0870585036,24/03/2015,399958,0.44,NET,Royal Mail S.Wales & South West,35830S
Gloucester City Council,23UE,Retail Market - Landlord,HM300,Hire Of Equipment,5020,SKIP HIRE,24/03/2015,399956,210,NET,D R Skip Hire,04822D
Gloucester City Council,23UE,Retail Market - Landlord,HM300,Window Cleaning,3610,CLEANING MAR 2015,24/03/2015,399938,140,NET,Cornwall Cleaning Services,14050A
Gloucester City Council,23UE,Safer Stronger Communities,FP841,Other Minor Supplies Services,5590,BALLOONS,24/03/2015,399960,45,NET,Balloon Crazy,15531T
Gloucester City Council,23UE,Southgate Moorings,RB537,Service Charges,3020,Service Charge Mar - Jun 2015,24/03/2015,399784,2000,NET,Gloucester Quays Management Ltd,13497K
Gloucester City Council,23UE,Tic Trading,LT110,Materials For Sale,5080,GOODS FOR RESALE,24/03/2015,399950,246.6,NET,Giftworks Ltd,12855R
Gloucester City Council,23UE,Tic Trading,LT110,Materials For Sale,5080,TSHIRTS,24/03/2015,399941,1030,NET,Sportfolio Europe Lp,14456R
Gloucester City Council,23UE,Tourism Marketing,LT100,Advertising And Publicity,5702,CLOTHING,24/03/2015,399985,116.67,NET,Hudson & Co,49730P
Gloucester City Council,23UE,Tourism Marketing,LT100,Advertising And Publicity,5702,Literature Holder,24/03/2015,399823,29.98,NET,Display Sense,09632P
Gloucester City Council,23UE,Tourism Marketing,LT100,Exhibits And Collections,5038,PENS,24/03/2015,399955,254,NET,Hotline.Co.Uk,15534L
Gloucester City Council,23UE,Business Transformation & Tech,RT700,Computer Hardware <5000,5420,HARDWARE,25/03/2015,399961,71.85,NET,Dell Computers Corporation Ltd,55920C
Gloucester City Council,23UE,Business Transformation & Tech,RT700,Computer Hardware Maintenance,5426,Annual Software Licence,25/03/2015,396193,9375,NET,Northgate Information Solutions Uk Ltd,08982S
Gloucester City Council,23UE,Business Transformation & Tech,RT700,Computer Hardware Maintenance,5426,Annual Software Licence,25/03/2015,396195,9375,NET,Northgate Information Solutions Uk Ltd,08982S
Gloucester City Council,23UE,Business Transformation & Tech,RT700,Computer Hardware Maintenance,5426,Annual Software Licence,25/03/2015,396197,9375,NET,Northgate Information Solutions Uk Ltd,08982S
Gloucester City Council,23UE,Business Transformation & Tech,RT700,Computer Hardware Maintenance,5426,Annual Software Support,25/03/2015,396196,9375,NET,Northgate Information Solutions Uk Ltd,08982S
Gloucester City Council,23UE,Business Transformation & Tech,RT700,Computer Hardware Maintenance,5426,Annual Software Support,25/03/2015,396198,9375,NET,Northgate Information Solutions Uk Ltd,08982S
Gloucester City Council,23UE,Business Transformation & Tech,RT700,Computer Hardware Maintenance,5426,Annual Software Support,25/03/2015,396194,9375,NET,Northgate Information Solutions Uk Ltd,08982S
Gloucester City Council,23UE,Cemeteries,HC300,Maint Of Grounds - General,3030,R41,25/03/2015,399945,82,NET,Rigby Taylor Ltd,37605G
Gloucester City Council,23UE,Cemeteries,HC300,Repair/Maint Of Monuments,3004,C28/35,25/03/2015,400112,388.36,NET,Easy Mix Ltd,01403L
Gloucester City Council,23UE,Cemeteries,HC300,Routine R And M - Vehicles,4011,Various Items,25/03/2015,400110,935.09,NET,Garden Machinery Gloucester,55641K
Gloucester City Council,23UE,City Museum And Art Gallery,LM200,Operational Equipment <5000,5012,Various Items,25/03/2015,399786,136.76,NET,3d Displays Ltd,57544P
Gloucester City Council,23UE,City Museum And Art Gallery,LM200,Publications For Sale,5064,Logo Pins etc,25/03/2015,399864,640,NET,Brandco Management Ltd,14960Y
Gloucester City Council,23UE,City Museum And Art Gallery,LM200,Publications For Sale,5064,Various Items,25/03/2015,399851,292.95,NET,Westair Reproductions Ltd,47000G
Gloucester City Council,23UE,City Museum Catering,LM202,Catering Provisions -Food,5110,COFFEE,25/03/2015,399943,98.85,NET,James Gourmet Coffee Co.,55049A
Gloucester City Council,23UE,City Museum Catering,LM202,Catering Provisions -Food,5110,Food,25/03/2015,400128,54.49,NET,Woodward Foodservice,10714F
Gloucester City Council,23UE,Civica Admin Charges,RT105,Postages,5400,Post 09/03 - 13/03 2015,25/03/2015,400122,2075.07,NET,Royal Mail S.Wales & South West,35830S
Gloucester City Council,23UE,Contact Centre,RB300,Basic Pay - Temporary Staff,2751,STAFF W/E 13/03/15,25/03/2015,399937,273.06,NET,One To One Recruitment,04752H
Gloucester City Council,23UE,Contact Centre,RB300,Uniforms,5201,Blouses,25/03/2015,400103,37,NET,Meltemi Company Clothing Limited,54572N
Gloucester City Council,23UE,Countryside Unit,LP201,Major R And M - Vehicles,4010,Various Items,25/03/2015,400102,191.69,NET,A C Belting Ltd,00250X
Gloucester City Council,23UE,Docks Complex - Services,RB100,Catering Provisions -Food,5110,FOOD,25/03/2015,399188,93.57,NET,Janes Pantry,24500W
Gloucester City Council,23UE,Docks Complex - Services,RB100,General Repair/Maint Buildings,3000,Checks February 2015,25/03/2015,400124,1182.76,NET,Hewer Facilities Mgt Ltd,05232A
Gloucester City Council,23UE,Equalities,EH102,Fees For Services Received,5350,Interpreting Expenses 21/03/2015,25/03/2015,400080,360,NET,Europa European Alliance Cic,15530V
Gloucester City Council,23UE,Folk Museum,LM210,Publications For Sale,5064,Logo Pins etc,25/03/2015,399864,540,NET,Brandco Management Ltd,14960Y
Gloucester City Council,23UE,Gloucester Guildhall,LA100,Cleaning Materials,3600,CLEANING GOODS,25/03/2015,399932,391.42,NET,Gpp Hygiene,06080P
Gloucester City Council,23UE,Gloucester Guildhall,LA100,Maintenance Of Equipment,5030,Scaff Tag Inspection 11/03/2015,25/03/2015,400100,148,NET,Global Platforms Ltd,09794K
Gloucester City Council,23UE,Grants To Voluntary Sector,FG100,Grants To Voluntary Orgs-Rents,7100,GRANT,25/03/2015,400067,1000,NET,Quedgeley Parish Council,48506G
Gloucester City Council,23UE,Grants To Voluntary Sector,FG100,Members Allocation Fund,7100F,GRANT,25/03/2015,400068,1000,NET,Infobuzz Ltd,4743C
Gloucester City Council,23UE,REDACTED,REDACTED,REDACTED,REDACTED,REDACTED,25/03/2015,REDACTED,450,NET,REDACTED,REDACTED
Gloucester City Council,23UE,Grants To Voluntary Sector,FG100,Members Allocation Fund,7100F,GRANT,25/03/2015,400069,77.5,NET,Podsmead Big Local,14952X
Gloucester City Council,23UE,Guildhall Bar And Caf�,LA210,Catering Provisions -Food,5110,Food,25/03/2015,400138,87.59,NET,Woodward Foodservice,10714F
Gloucester City Council,23UE,Guildhall Bar And Caf�,LA210,Catering Provisions -Food,5110,Food,25/03/2015,400144,60,NET,Woodward Foodservice,10714F
Gloucester City Council,23UE,Guildhall Bar And Caf�,LA210,Catering Provisions -Food,5110,Milk,25/03/2015,400129,4.6,NET,Total Produce Gloucester,12645E
Gloucester City Council,23UE,Guildhall Bar And Caf�,LA210,Catering Provisions -Food,5110,Milk,25/03/2015,400130,4.6,NET,Total Produce Gloucester,12645E
Gloucester City Council,23UE,Guildhall Bar And Caf�,LA210,Catering Provisions -Food,5110,Milk,25/03/2015,400131,4.6,NET,Total Produce Gloucester,12645E
Gloucester City Council,23UE,Guildhall Bar And Caf�,LA210,Catering Provisions -Food,5110,Milk,25/03/2015,400132,4.6,NET,Total Produce Gloucester,12645E
Gloucester City Council,23UE,Guildhall Bar And Caf�,LA210,Catering Provisions -Food,5110,Milk,25/03/2015,400133,4.6,NET,Total Produce Gloucester,12645E
Gloucester City Council,23UE,Guildhall Bar And Caf�,LA210,Catering Provisions -Food,5110,Milk,25/03/2015,400134,4.6,NET,Total Produce Gloucester,12645E
Gloucester City Council,23UE,Guildhall Bar And Caf�,LA210,Catering Provisions -Food,5110,Milk,25/03/2015,400135,4.6,NET,Total Produce Gloucester,12645E
Gloucester City Council,23UE,Guildhall Bar And Caf�,LA210,Catering Provisions -Food,5110,Milk,25/03/2015,400136,4.6,NET,Total Produce Gloucester,12645E
Gloucester City Council,23UE,Guildhall Bar And Caf�,LA210,Catering Provisions -Food,5110,Milk,25/03/2015,400137,4.6,NET,Total Produce Gloucester,12645E
Gloucester City Council,23UE,REDACTED,REDACTED,REDACTED,REDACTED,REDACTED,25/03/2015,REDACTED,1500,NET,REDACTED,REDACTED
Gloucester City Council,23UE,REDACTED,REDACTED,REDACTED,REDACTED,REDACTED,25/03/2015,REDACTED,240,NET,REDACTED,REDACTED
Gloucester City Council,23UE,REDACTED,REDACTED,REDACTED,REDACTED,REDACTED,25/03/2015,REDACTED,0,NET,REDACTED,REDACTED
Gloucester City Council,23UE,Hempsted Market/Car Boot,HM234,Hire Of Equipment,5020,Mar-15,25/03/2015,399192,254.19,NET,Portable Offices (Hire ) Ltd,06286R
Gloucester City Council,23UE,Homelessness,CH120,Basic Pay - Temporary Staff,2751,TEMPORARY STAFF,25/03/2015,398319,703,NET,Building Recruitment Company Ltd,55385E
Gloucester City Council,23UE,Homelessness,CH120,Basic Pay - Temporary Staff,2751,TEMPORARY STAFF,25/03/2015,397851,703,NET,Building Recruitment Company Ltd,55385E
Gloucester City Council,23UE,Homelessness,CH120,Rent In Advance,5516,RIA & Deposit,25/03/2015,400145,484.6,NET,REDACTED,REDACTED
Gloucester City Council,23UE,Homelessness Prevention,CH122,Fees For Services Received,5350,RIA & Deposit,25/03/2015,400145,500,NET,REDACTED,REDACTED
Gloucester City Council,23UE,Inhouse Training,EH200,Vocational Training,2970,Workplace Paper,25/03/2015,399790,445.8,NET,Chartered Institute Enviromental Health,50829M
Gloucester City Council,23UE,Investment Property,RB500,General Repair/Maint Buildings,3000,Checks February 2015,25/03/2015,400125,1000,NET,Hewer Facilities Mgt Ltd,05232A
Gloucester City Council,23UE,Off Street Car Parks,PP110,General Repair/Maint Buildings,3000,Recovery Work,25/03/2015,400121,475,NET,Roadmark Ltd,37743T
Gloucester City Council,23UE,Off Street Car Parks,PP110,General Repair/Maint Buildings,3000,Repairs,25/03/2015,400120,275,NET,Roadmark Ltd,37743T
Gloucester City Council,23UE,Retail Market - Landlord,HM300,Operational Equipment <5000,5012,Mar-15,25/03/2015,399301,280.56,NET,System Rental Uk Ltd,03239E
Gloucester City Council,23UE,Safer Stronger Communities,FP841,Other Minor Supplies Services,5590,Artwork,25/03/2015,399999,125,NET,Icon.Net,52505Z
Gloucester City Council,23UE,Safer Stronger Communities,FP841,Other Minor Supplies Services,5590,Cake for Event 21/03/2015,25/03/2015,400081,65,NET,Europa European Alliance Cic,15530V
Gloucester City Council,23UE,Stationery Services,RS150,Printing,5300,Stationary,25/03/2015,400109,22.47,NET,Lyreco Uk Ltd,11746G
Gloucester City Council,23UE,REDACTED,REDACTED,REDACTED,REDACTED,REDACTED,25/03/2015,REDACTED,55,NET,REDACTED,REDACTED
Gloucester City Council,23UE,REDACTED,REDACTED,REDACTED,REDACTED,REDACTED,25/03/2015,REDACTED,38.5,NET,REDACTED,REDACTED
Gloucester City Council,23UE,REDACTED,REDACTED,REDACTED,REDACTED,REDACTED,25/03/2015,REDACTED,49.5,NET,REDACTED,REDACTED
Gloucester City Council,23UE,The Arbor,HC501,Other Minor Supplies Services,5590,NAME BADGES,25/03/2015,397550,31.05,NET,Badgemaster Ltd,58525J
Gloucester City Council,23UE,Tourism Marketing,LT100,Uniforms,5201,Name Badges - Our Big Year 2015,25/03/2015,400107,86.55,NET,Badgemaster Ltd,58525J
Gloucester City Council,23UE,Cemeteries,HC300,Major R And M - Vehicles,4010,Various Items,26/03/2015,396468,37.3,NET,Machine Mart Ltd*,55207G
Gloucester City Council,23UE,Cemeteries,HC300,Operational Materials,5070,Various Items,26/03/2015,400074,189.96,NET,Machine Mart Ltd*,55207G
Gloucester City Council,23UE,Civica Admin Charges,RT105,Postages,5400,Post 23/02 - 06/03 2015,26/03/2015,399863,1377.9,NET,Royal Mail S.Wales & South West,35830S
Gloucester City Council,23UE,REDACTED,REDACTED,REDACTED,REDACTED,REDACTED,26/03/2015,REDACTED,245,NET,REDACTED,REDACTED
Gloucester City Council,23UE,REDACTED,REDACTED,REDACTED,REDACTED,REDACTED,26/03/2015,REDACTED,75,NET,REDACTED,REDACTED
Gloucester City Council,23UE,REDACTED,REDACTED,REDACTED,REDACTED,REDACTED,26/03/2015,REDACTED,1000,NET,REDACTED,REDACTED
Gloucester City Council,23UE,Grants To Voluntary Sector,FG100,Sla'S,7100B,Payments 3&4 Service Level Agreement,26/03/2015,400186,1017.5,NET,Garas,57701Y
Gloucester City Council,23UE,Grants To Voluntary Sector,FG100,Sla'S,7100B,Quarters 3&4 Advice Centres Fund,26/03/2015,400187,51510,NET,Gloucester Law Centre,18157R
Gloucester City Council,23UE,REDACTED,REDACTED,REDACTED,REDACTED,REDACTED,26/03/2015,REDACTED,42153.5,NET,REDACTED,REDACTED
Gloucester City Council,23UE,Guildhall Cinema,LA202,Fees For Services Received,5350,Support & Maintenance Annual Charge,26/03/2015,399796,1595,NET,Arts Alliance Media Ltd,14477G
Gloucester City Council,23UE,REDACTED,REDACTED,REDACTED,REDACTED,REDACTED,26/03/2015,REDACTED,600,NET,REDACTED,REDACTED
Gloucester City Council,23UE,REDACTED,REDACTED,REDACTED,REDACTED,REDACTED,26/03/2015,REDACTED,2195,NET,REDACTED,REDACTED
Gloucester City Council,23UE,Legal Services,RS200,Basic Pay - Temporary Staff,2751,TEMPORARY STAFF,26/03/2015,400106,487.29,NET,Premiere Employment Group Ltd,55468Z
Gloucester City Council,23UE,Retail Market - Landlord,HM300,Service Charges,3020,Market Hall Service Charge 31/03 - 29/06,26/03/2015,399021,11905.5,NET,Workman Llp,11021M
Gloucester City Council,23UE,Advance City Attractions,LT109,Materials For Sale,5080,Blue Vouchers Feb 2015,27/03/2015,399798,30.83,NET,Blenheim Palace Visitors Partnership,10749K
Gloucester City Council,23UE,Advance City Attractions,LT109,Sale Of Goods And Services,9230,Blue Vouchers Feb 2015,27/03/2015,399798,-1.67,NET,Blenheim Palace Visitors Partnership,10749K
Gloucester City Council,23UE,Aspire Admin Charges,LC105,Other Minor Income,9900,BAILIFF PAYMENTS 13/03/15,27/03/2015,400203,14.6,NET,Aspire Sports & Cultural Trust,08135V
Gloucester City Council,23UE,Aspire Admin Charges,LC105,Security Services Fees,5351,Services April 2015,27/03/2015,399866,181.28,NET,G4s Cash Solutions (Uk) Ltd,04290V
Gloucester City Council,23UE,Blackfriars,LA609,Security Services Fees,5351,Door Staff February 2015,27/03/2015,400018,631.25,NET,Nsgl Ltd,12539E
Gloucester City Council,23UE,Blackfriars,LA609,Security Services Fees,5351,Door Staff January 2015,27/03/2015,400025,700,NET,Nsgl Ltd,12539E
Gloucester City Council,23UE,Cemeteries,HC300,Maint Of Grounds - General,3030,Various Items,27/03/2015,400089,137.55,NET,A T S Euromaster Ltd,01860B
Gloucester City Council,23UE,Cemeteries,HC300,Operational Materials,5070,Uniforms,27/03/2015,400085,61.3,NET,Safpro Industrial Supply Co,39190W
Gloucester City Council,23UE,Cemeteries,HC300,Purch Vehicles/M. Plant <5000,4000,Rubber Tracks,27/03/2015,400078,860,NET,Jay Bee Plant Sales Ltd,11156L
Gloucester City Council,23UE,Cems/Crems Admin,HC100,Security Services Fees,5351,Services April 2015,27/03/2015,399866,103.33,NET,G4s Cash Solutions (Uk) Ltd,04290V
Gloucester City Council,23UE,Cems/Crems Admin,HC100,Security Services Fees,5351,Services February 2015,27/03/2015,399867,10.58,NET,G4s Cash Solutions (Uk) Ltd,04290V
Gloucester City Council,23UE,City Museum And Art Gallery,LM200,Events,5952,Roaming Reptile Experience Oct 2014,27/03/2015,397540,350,NET,Roaming Reptiles,15440X
Gloucester City Council,23UE,City Museum And Art Gallery,LM200,Publications For Sale,5064,Various Items,27/03/2015,399776,68.06,NET,Professor Puzzle Ltd,15520Y
Gloucester City Council,23UE,City Museum And Art Gallery,LM200,Security Services Fees,5351,Services April 2015,27/03/2015,399866,90.64,NET,G4s Cash Solutions (Uk) Ltd,04290V
Gloucester City Council,23UE,Cleansing Services Admin,HI100,Fees For Services Received,5350,Signs,27/03/2015,400014,891,NET,Alpha Graphics,03471Y
Gloucester City Council,23UE,Client Revs & Bens Contract,RT240,Bailiffs Fees,5368,VAT due on statutory fees,27/03/2015,399832,0,NET,Bristow & Sutor,05450M
Gloucester City Council,23UE,Client Revs & Bens Contract,RT240,Bailiffs Fees,5368,VAT due on statutory fees,27/03/2015,399833,0,NET,Bristow & Sutor,05450M
Gloucester City Council,23UE,Client Revs & Bens Contract,RT240,Bailiffs Fees,5368,VAT due on statutory fees,27/03/2015,399834,116.6,NET,Bristow & Sutor,05450M
Gloucester City Council,23UE,Client Revs & Bens Contract,RT240,Bailiffs Fees,5368,VAT due on statutory fees,27/03/2015,400104,416.39,NET,Bristow & Sutor,05450M
Gloucester City Council,23UE,Client Revs & Bens Contract,RT240,Bailiffs Fees,5368,VAT due on statutory fees,27/03/2015,400105,0,NET,Bristow & Sutor,05450M
Gloucester City Council,23UE,Client Revs & Bens Contract,RT240,Bailiffs Fees,5368,VAT on fees collected,27/03/2015,399802,0,NET,Phoenix Commercial Collections Ltd,13435J
Gloucester City Council,23UE,Client Revs & Bens Contract,RT240,Bailiffs Fees,5368,VAT on fees collected,27/03/2015,400113,0,NET,Phoenix Commercial Collections Ltd,13435J
Gloucester City Council,23UE,Client Revs & Bens Contract,RT240,Bailiffs Fees,5368,VAT on fees collected,27/03/2015,400141,0,NET,Phoenix Commercial Collections Ltd,13435J
Gloucester City Council,23UE,Council Streetcare Team,HI101,Maint Of Grounds - General,3030,141 BARNWOOD AVE,27/03/2015,399953,45,NET,Rdb Safety Boat Ltd,13507J
Gloucester City Council,23UE,Countryside Unit,LP201,General Repair/Maint Buildings,3000,Hawthorn Seat,27/03/2015,400079,461,NET,Streetmaster Products,00534D
Gloucester City Council,23UE,Countryside Unit,LP201,Maint Of Grounds - General,3030,Various Items,27/03/2015,400096,39.89,NET,Screwfix Direct*,54672H
Gloucester City Council,23UE,Countryside Unit,LP201,Tyres,4014,Repairs,27/03/2015,400088,22.61,NET,Ats Euromaster Ltd,06005E
Gloucester City Council,23UE,Crematorium,HC200,Repair/Maint Of Fixed Plant,3006,Various Items,27/03/2015,400077,1355.58,NET,Facultatieve Technologies Ltd,51210H
Gloucester City Council,23UE,REDACTED,REDACTED,REDACTED,REDACTED,REDACTED,27/03/2015,REDACTED,5669.02,CAP,REDACTED,REDACTED
Gloucester City Council,23UE,Docks Complex - Services,RB100,Security Services Fees,5351,Services April 2015,27/03/2015,399866,270.81,NET,G4s Cash Solutions (Uk) Ltd,04290V
Gloucester City Council,23UE,Docks Complex - Services,RB100,Security Services Fees,5351,Services February 2015,27/03/2015,399867,3.53,NET,G4s Cash Solutions (Uk) Ltd,04290V
Gloucester City Council,23UE,Flooding And Drainage,HE306,Maint Of Grounds - General,3030,SUDBROOK,27/03/2015,399952,90,NET,Rdb Safety Boat Ltd,13507J
Gloucester City Council,23UE,Folk Museum,LM210,Publications For Sale,5064,Various Items,27/03/2015,399776,60.06,NET,Professor Puzzle Ltd,15520Y
Gloucester City Council,23UE,Folk Museum,LM210,Security Services Fees,5351,Services April 2015,27/03/2015,399866,90.64,NET,G4s Cash Solutions (Uk) Ltd,04290V
Gloucester City Council,23UE,Gloucester Guildhall,LA100,Security Services Fees,5351,Services April 2015,27/03/2015,399866,90.64,NET,G4s Cash Solutions (Uk) Ltd,04290V
Gloucester City Council,23UE,Grants To Voluntary Sector,FG100,Members Allocation Fund,7100F,GRANT,27/03/2015,400214,200,NET,Podsmead Big Local,14952X
Gloucester City Council,23UE,Guildhall Bar And Caf�,LA210,Catering Provisions -Liquor,5111,Drinks,27/03/2015,400002,702.95,NET,Cellar Supplies Cheltenham Ltd,01563L
Gloucester City Council,23UE,Guildhall Bar And Caf�,LA210,Catering Provisions -Liquor,5111,Late Payment Fee,27/03/2015,400016,15,NET,Boc Ltd,59172L
Gloucester City Council,23UE,Guildhall Bar And Caf�,LA210,Hire Of Equipment,5020,Stock Audit 26/02/2015,27/03/2015,400000,70,NET,Fea Audits,08888J
Gloucester City Council,23UE,Guildhall Events,LA200,Advertising And Publicity,5702,adverts feb 2015,27/03/2015,399994,402.42,NET,Local World Ltd,08556P
Gloucester City Council,23UE,REDACTED,REDACTED,REDACTED,REDACTED,REDACTED,27/03/2015,REDACTED,75,NET,REDACTED,REDACTED
Gloucester City Council,23UE,REDACTED,REDACTED,REDACTED,REDACTED,REDACTED,27/03/2015,REDACTED,500,NET,REDACTED,REDACTED
Gloucester City Council,23UE,REDACTED,REDACTED,REDACTED,REDACTED,REDACTED,27/03/2015,REDACTED,600,NET,REDACTED,REDACTED
Gloucester City Council,23UE,Guildhall Events,LA200,Catering Provisions -Food,5110,Espressos,27/03/2015,400001,154.52,NET,Ethical Addictions Ltd,11654N
Gloucester City Council,23UE,Guildhall Events,LA200,Fees For Services Received,5350,Distribution of Gloucester Guildhall,27/03/2015,400010,460,NET,Glide Media,58829J
Gloucester City Council,23UE,Guildhall Events,LA200,Fees For Services Received,5350,Web Pages,27/03/2015,400009,950,NET,Chris Ford Graphic Design,15550N
Gloucester City Council,23UE,REDACTED,REDACTED,REDACTED,REDACTED,REDACTED,27/03/2015,REDACTED,30,NET,REDACTED,REDACTED
Gloucester City Council,23UE,REDACTED,REDACTED,REDACTED,REDACTED,REDACTED,27/03/2015,REDACTED,300,NET,REDACTED,REDACTED
Gloucester City Council,23UE,REDACTED,REDACTED,REDACTED,REDACTED,REDACTED,27/03/2015,REDACTED,120,NET,REDACTED,REDACTED
Gloucester City Council,23UE,REDACTED,REDACTED,REDACTED,REDACTED,REDACTED,27/03/2015,REDACTED,80,NET,REDACTED,REDACTED
Gloucester City Council,23UE,Guildhall Events,LA200,Security Services Fees,5351,Door Staff February 2015,27/03/2015,400018,821.25,NET,Nsgl Ltd,12539E
Gloucester City Council,23UE,Guildhall Events,LA200,Security Services Fees,5351,Door Staff January 2015,27/03/2015,400025,587.5,NET,Nsgl Ltd,12539E
Gloucester City Council,23UE,Homelessness,CH120,Basic Pay - Temporary Staff,2751,TEMPORARY STAFF,27/03/2015,398375,703,NET,Building Recruitment Company Ltd,55385E
Gloucester City Council,23UE,Homelessness,CH120,Basic Pay - Temporary Staff,2751,TEMPORARY STAFF,27/03/2015,399065,703,NET,Building Recruitment Company Ltd,55385E
Gloucester City Council,23UE,Homelessness,CH120,Board And Lodging,5515,various tenants,27/03/2015,400206,161.1,NET,James Legge Property (Ltd),07844R
Gloucester City Council,23UE,Homelessness,CH120,Board And Lodging,5515,various tenants,27/03/2015,400210,863.1,NET,Carbrey Housing Ltd,11098G
Gloucester City Council,23UE,Homelessness,CH120,Board And Lodging,5515,various tenants,27/03/2015,400208,500.78,NET,Kalmwood Ltd,08568G
Gloucester City Council,23UE,Homelessness,CH120,Board And Lodging,5515,various tenants,27/03/2015,400209,1556.06,NET,Carbrey Housing Ltd,11098G
Gloucester City Council,23UE,Homelessness,CH120,Board And Lodging,5515,various tenants,27/03/2015,400205,1476.3,NET,Dorchester House Trust,12298D
Gloucester City Council,23UE,REDACTED,REDACTED,REDACTED,REDACTED,REDACTED,27/03/2015,REDACTED,4328.44,NET,REDACTED,REDACTED
Gloucester City Council,23UE,REDACTED,REDACTED,REDACTED,REDACTED,REDACTED,27/03/2015,REDACTED,473.2,NET,REDACTED,REDACTED
Gloucester City Council,23UE,Internal Audit,RT300,Basic Pay - Temporary Staff,2751,TEMPORARY STAFF,27/03/2015,400093,778.75,NET,Robert Half Ltd,03959K
Gloucester City Council,23UE,Investment Property,RB500,Rents,3200,Yearly Rent  15/16,27/03/2015,399782,15,NET,Martin Slowe Chartered Surveyors,51573R
Gloucester City Council,23UE,Marchants,LT108,Materials For Sale,5080,SALES DEC 2014,27/03/2015,399948,867,NET,Marchants Coaches Ltd,48151Y
Gloucester City Council,23UE,Marchants,LT108,Materials For Sale,5080,SALES JAN 2015,27/03/2015,399947,867,NET,Marchants Coaches Ltd,48151Y
Gloucester City Council,23UE,Nms Contract,HI102,Contracted Services,6970,Mar-15,27/03/2015,399780,490613.67,NET,Enterprise (Aol) Ltd,06695G
Gloucester City Council,23UE,Play Area Refurbishment,LY071,Contract Payments,20,GLEVUM PLAY AREA,27/03/2015,399425,6162.02,CAP,Greenfields Garden Services Ltd,48130G
Gloucester City Council,23UE,Postal Services,RS120,Postages,5400,Post 02/03 - 12/03 2015,27/03/2015,400123,1242.01,NET,Royal Mail S.Wales & South West,35830S
Gloucester City Council,23UE,S106 Hempsted Way Play Area,LY156,Contract Payments,20,Hedge Laying - Hempsted,27/03/2015,400097,600,CAP,The Little Tree Company,15543K
Gloucester City Council,23UE,Stationery Services,RS150,Stationery,5302,Color Copy A3,27/03/2015,400004,45.63,NET,Premier Paper Group Ltd,09166Y
Gloucester City Council,23UE,Stationery Services,RS150,Stationery,5302,CREDITED ON 6721795830,27/03/2015,400202,9.9,NET,Lyreco Uk Ltd,11746G
Gloucester City Council,23UE,Stationery Services,RS150,Stationery,5302,Stationary,27/03/2015,400026,3.87,NET,Lyreco Uk Ltd,11746G
Gloucester City Council,23UE,Stationery Services,RS150,Stationery,5302,Stationary,27/03/2015,400090,72.96,NET,Lyreco Uk Ltd,11746G
Gloucester City Council,23UE,Stationery Services,RS150,Stationery,5302,Stationary,27/03/2015,400091,62.71,NET,Lyreco Uk Ltd,11746G
Gloucester City Council,23UE,Stationery Services,RS150,Stationery,5302,Stationary,27/03/2015,400108,45.12,NET,Lyreco Uk Ltd,11746G
Gloucester City Council,23UE,Tourism Marketing,LT100,Security Services Fees,5351,Services April 2015,27/03/2015,399866,90.64,NET,G4s Cash Solutions (Uk) Ltd,04290V
Gloucester City Council,23UE,Utilities,PT502,Electricity Supply,3110,UTILITIES TO MAR 2015,27/03/2015,399885,45870.92,NET,West Mercia Energy,11669Z
Gloucester City Council,23UE,Utilities,PT502,Gas Supply,3100,UTILITIES TO MAR 2015,27/03/2015,399885,1372.22,NET,West Mercia Energy,11669Z
Gloucester City Council,23UE,Vehicles,RS140,Fuel,4012,Fuel,27/03/2015,400119,106.1,NET,Allstar Business Solutions Ltd (Arval),06594A
Gloucester City Council,23UE,Business Transformation & Tech,RT700,Computer Hardware <5000,5420,HARDWARE,30/03/2015,400140,88,NET,Qual Technology,56512N
Gloucester City Council,23UE,City Museum And Art Gallery,LM200,Publications For Sale,5064,GOODS FOR RESALE,30/03/2015,399998,574.7,NET,Moussa Direct Ltd,12527M
Gloucester City Council,23UE,Client Revs & Bens Contract,RT240,Subscriptions,5600,Subscription 15/16,30/03/2015,400013,1810,NET,Tameside Mbc,57810S
Gloucester City Council,23UE,Council Streetcare Team,HI101,Maint Of Grounds - General,3030,CONEY HILL PARK,30/03/2015,397239,1444,NET,Greenfields Garden Services Ltd,48130G
Gloucester City Council,23UE,Crematorium,HC200,National Assist Act Burial Exp,5593,Funeral charges,30/03/2015,398811,450,NET,Selim Smith & Co Funeral Directors,15156X
Gloucester City Council,23UE,Crematorium,HC200,National Assist Act Burial Exp,5593,Funeral charges,30/03/2015,398810,450,NET,Selim Smith & Co Funeral Directors,15156X
Gloucester City Council,23UE,Crematorium,HC200,National Assist Act Burial Exp,5593,Funeral charges,30/03/2015,399793,788,NET,Selim Smith & Co Funeral Directors,15156X
Gloucester City Council,23UE,Development Management,PT200,Advertising And Publicity,5702,ADVERT 12/03/15,30/03/2015,399987,233.73,NET,Local World Ltd,08556P
Gloucester City Council,23UE,Docks Complex - Catering Servs,RB110,Catering Provisions -Food,5110,Food w/e 08/02/2015,30/03/2015,398170,75.95,NET,Janes Pantry,24500W
Gloucester City Council,23UE,Docks Complex - Catering Servs,RB110,Catering Provisions -Food,5110,Food w/e 22/02/2015,30/03/2015,398736,70.11,NET,Janes Pantry,24500W
Gloucester City Council,23UE,Docks Complex - Telephones,RB120,Mobile Phones,5409,Rental Charges,30/03/2015,399464,100,NET,Virgin Media Business,01869B
Gloucester City Council,23UE,Guildhall Bar And Caf�,LA210,Basic Pay - Duty Assistants,1511,Gloucester Gold,30/03/2015,400003,114,NET,Gloucester Brewery,13373F
Gloucester City Council,23UE,Guildhall Bar And Caf�,LA210,Catering Provisions -Food,5110,Food w/e 08/03/2015,30/03/2015,399449,40.9,NET,Janes Pantry,24500W
Gloucester City Council,23UE,Guildhall Bar And Caf�,LA210,Catering Provisions -Food,5110,Food w/e 22/02/15,30/03/2015,398735,42.3,NET,Janes Pantry,24500W
Gloucester City Council,23UE,REDACTED,REDACTED,REDACTED,REDACTED,REDACTED,30/03/2015,REDACTED,120,NET,REDACTED,REDACTED
Gloucester City Council,23UE,REDACTED,REDACTED,REDACTED,REDACTED,REDACTED,30/03/2015,REDACTED,120,NET,REDACTED,REDACTED
Gloucester City Council,23UE,REDACTED,REDACTED,REDACTED,REDACTED,REDACTED,30/03/2015,REDACTED,120,NET,REDACTED,REDACTED
Gloucester City Council,23UE,Homelessness,CH120,Rent In Advance,5516,RIA & Deposit,30/03/2015,400289,368.2,NET,James Legge Property (Ltd),07844R
Gloucester City Council,23UE,Homelessness,CH120,Rent In Advance,5516,RIA,30/03/2015,400291,364.6,NET,James Legge Property (Ltd),07844R
Gloucester City Council,23UE,Homelessness Prevention,CH122,Fees For Services Received,5350,RIA & Deposit,30/03/2015,400290,525,NET,REDACTED,REDACTED
Gloucester City Council,23UE,Homelessness Prevention,CH122,Fees For Services Received,5350,RIA & Deposit,30/03/2015,400289,400,NET,James Legge Property (Ltd),07844R
Gloucester City Council,23UE,Shopmobility,PE200,Maintenance Of Equipment,5030,Various Repairs,30/03/2015,400076,204,NET,Disabled Care & Mobility,12675V
Gloucester City Council,23UE,Shopmobility,PE200,Maintenance Of Equipment,5030,Various Repairs,30/03/2015,400117,810.44,NET,Disabled Care & Mobility,12675V
Gloucester City Council,23UE,Superbreak,LT104,Materials For Sale,5080,TICKET SALES,30/03/2015,399996,70,NET,Superbreak Mini Holidays,00712D
Gloucester City Council,23UE,Superbreak,LT104,Sale Of Goods And Services,9230,TICKET SALES,30/03/2015,399996,-5.83,NET,Superbreak Mini Holidays,00712D
Gloucester City Council,23UE,The Arbor,HC501,Catering Provisions -Food,5110,FOOD,30/03/2015,399991,185.7,NET,Janes Pantry,24500W
Gloucester City Council,23UE,The Arbor,HC501,Catering Provisions -Food,5110,Food w/e 08/03/2015,30/03/2015,399435,156.58,NET,Janes Pantry,24500W
Gloucester City Council,23UE,Ugly Structures,GY010,Contract Payments,20,KINGSWALK FACADE,30/03/2015,399986,895,CAP,Monument Geomatics,11065F
Gloucester City Council,23UE,Westgate Leisure Area S106,LY155,Contract Payments,20,SIGNS,30/03/2015,400007,52.7,CAP,Severn Signs Ltd,49841D
Gloucester City Council,23UE,Building Control,PT400,Basic Pay - Temporary Staff,2751,TEMPORARY STAFF,31/03/2015,400092,1691,NET,The Oyster Partnership Limited,14900T
Gloucester City Council,23UE,Building Control,PT400,Basic Pay - Temporary Staff,2751,TEMPORARY STAFF,31/03/2015,399791,1700.3,NET,The Oyster Partnership Limited,14900T
Gloucester City Council,23UE,Building Control,PT400,Basic Pay - Temporary Staff,2751,TEMPORARY STAFF,31/03/2015,400101,1448.1,NET,The Oyster Partnership Limited,14900T
Gloucester City Council,23UE,Business Support,PT250,Routine R And M - Vehicles,4011,CREDITED ON 399817,31/03/2015,399912,240,NET,Blade Motor Company,13671U
Gloucester City Council,23UE,Cemeteries,HC300,Major R And M - Vehicles,4010,Various Repairs,31/03/2015,400371,438.53,NET,Garden Machinery Gloucester,55641K
Gloucester City Council,23UE,Cems/Crems Admin,HC100,Office Equipment <5000,5010,Ink Cartridges,31/03/2015,400288,51.98,NET,Office Star Group Ltd,55874H
Gloucester City Council,23UE,City Museum Catering,LM202,Catering Provisions -Food,5110,Food,31/03/2015,400398,114.61,NET,Woodward Foodservice,10714F
Gloucester City Council,23UE,City Museum Catering,LM202,Catering Provisions -Food,5110,Food,31/03/2015,400399,115.46,NET,Woodward Foodservice,10714F
Gloucester City Council,23UE,City Museum Catering,LM202,Catering Provisions -Food,5110,Food,31/03/2015,400466,127.01,NET,Woodward Foodservice,10714F
Gloucester City Council,23UE,City Museum Catering,LM202,Catering Provisions -Food,5110,Milk,31/03/2015,400270,4.6,NET,Total Produce Gloucester,12645E
Gloucester City Council,23UE,City Museum Catering,LM202,Catering Provisions -Food,5110,Milk,31/03/2015,400284,4.6,NET,Total Produce Gloucester,12645E
Gloucester City Council,23UE,City Museum Catering,LM202,Catering Provisions -Food,5110,Milk,31/03/2015,400392,4.6,NET,Total Produce Gloucester,12645E
Gloucester City Council,23UE,City Museum Catering,LM202,Catering Provisions -Food,5110,Milk,31/03/2015,400393,4.6,NET,Total Produce Gloucester,12645E
Gloucester City Council,23UE,City Museum Catering,LM202,Catering Provisions -Food,5110,Milk,31/03/2015,400394,4.6,NET,Total Produce Gloucester,12645E
Gloucester City Council,23UE,City Museum Catering,LM202,Catering Provisions -Food,5110,Milk,31/03/2015,400395,4.6,NET,Total Produce Gloucester,12645E
Gloucester City Council,23UE,City Museum Catering,LM202,Catering Provisions -Food,5110,Milk,31/03/2015,400396,4.6,NET,Total Produce Gloucester,12645E
Gloucester City Council,23UE,City Museum Catering,LM202,Catering Provisions -Food,5110,Milk,31/03/2015,400397,4.6,NET,Total Produce Gloucester,12645E
Gloucester City Council,23UE,Client Revs & Bens Contract,RT240,Advertising And Publicity,5702,ADVERT 11/03/15,31/03/2015,399988,584.32,NET,Local World Ltd,08556P
Gloucester City Council,23UE,Client Revs & Bens Contract,RT240,Fees For Services Received,5350,BAILIFF FEES,31/03/2015,400362,49.5,NET,Assevarate Ltd,11749A
Gloucester City Council,23UE,Client Revs & Bens Contract,RT240,Fees For Services Received,5350,BAILIFF FEES,31/03/2015,400361,99,NET,Assevarate Ltd,11749A
Gloucester City Council,23UE,Community Safety Projects,FP500,Basic Pay - Temporary Staff,2751,TEMPORARY STAFF,31/03/2015,400126,486.62,NET,Travail Employment Ltd,49371W
Gloucester City Council,23UE,Contact Centre,RB300,Basic Pay - Temporary Staff,2751,TEMPORARY STAFF,31/03/2015,400377,382.8,NET,One To One Recruitment,04752H
Gloucester City Council,23UE,Contact Centre,RB300,Basic Pay - Temporary Staff,2751,TEMPORARY STAFF,31/03/2015,400378,438.94,NET,One To One Recruitment,04752H
Gloucester City Council,23UE,Docks Complex - Services,RB100,Catering Provisions -Food,5110,FOOD,31/03/2015,399992,72.93,NET,Janes Pantry,24500W
Gloucester City Council,23UE,Financial Services,RT200,Bank Charges And Adjustments,5950,Plus UK - 29/03/15 - 29/03/16,31/03/2015,400311,1299,NET,Creditsafe Business Solutions Ltd,06189P
Gloucester City Council,23UE,Gloscat S106,LY073,Contract Payments,20,Gloucester Park - Fencing,31/03/2015,400111,2405,CAP,Greenfields Garden Services Ltd,48130G
Gloucester City Council,23UE,Guildhall Bar And Caf�,LA210,Catering Provisions -Liquor,5111,Drinks,31/03/2015,400384,1241.14,NET,Cellar Supplies Cheltenham Ltd,01563L
Gloucester City Council,23UE,Homelessness,CH120,Basic Pay - Temporary Staff,2751,TEMPORARY STAFF,31/03/2015,398834,703,NET,Building Recruitment Company Ltd,55385E
Gloucester City Council,23UE,Homelessness,CH120,General Repair/Maint Buildings,3000,Office Chairs,31/03/2015,400381,289,NET,Bestbuy Office Chairs,15521W
Gloucester City Council,23UE,Investment Property,RB500,General Repair/Maint Buildings,3000,BALANCE OF 393703,31/03/2015,400475,80,NET,Three Counties Drain Service,44033V
Gloucester City Council,23UE,Investment Property,RB500,General Repair/Maint Buildings,3000,"Eastgate Market, blocked drain",31/03/2015,393703,140,NET,Three Counties Drain Service,44033V
Gloucester City Council,23UE,Marchants,LT108,Materials For Sale,5080,Tickets Feb 2015,31/03/2015,400299,3061.5,NET,Marchants Coaches Ltd,48151Y
Gloucester City Council,23UE,Off Street Car Parks,PP110,Rents,3200,Rent Quarter 25/03 - 23/06 2015,31/03/2015,400503,46250,NET,Colliers International,15540S
Gloucester City Council,23UE,Parks Contract Management,LP100,Maint Of Grounds - General,3030,Playground Repairs,31/03/2015,400373,405.78,NET,Enterprise (Aol) Ltd,06695G
Gloucester City Council,23UE,Play Area Refurbishment,LY071,Contract Payments,20,"Glevum Way, additional carpentry works",31/03/2015,398366,500,CAP,Greenfields Garden Services Ltd,48130G
Gloucester City Council,23UE,Registration Of Electors,RS400,Printing,5300,AV REFRESH,31/03/2015,399391,980,NET,Alpha Response Print & Mail Ltd,03029U
Gloucester City Council,23UE,Registration Of Electors,RS400,Printing,5300,IER MAILINGS,31/03/2015,399390,483.84,NET,Alpha Response Print & Mail Ltd,03029U
Gloucester City Council,23UE,Retail Market - Landlord,HM300,Hire Of Equipment,5020,1 Skip,31/03/2015,400383,210,NET,D R Skip Hire,04822D
Gloucester City Council,23UE,Retail Market - Landlord,HM300,Sewerage And Environ Charges,3402,Works 09/03/2015,31/03/2015,400370,180,NET,Eezeeflow Drain Services,11587C
Gloucester City Council,23UE,S106 Monk Meadow Pos,LY158,Contract Payments,20,Installation of Play Equipment,31/03/2015,400142,3487,CAP,Sunshine Playgrounds Ltd,14958J
Gloucester City Council,23UE,Safe At Home Grants,CY012,Other Capital Grants,89,Contribution Q1 & Q2,31/03/2015,399794,9868,CAP,Gloucestershire County Council,18650D
Gloucester City Council,23UE,REDACTED,REDACTED,REDACTED,REDACTED,REDACTED,31/03/2015,REDACTED,120,NET,REDACTED,REDACTED
Gloucester City Council,23UE,Stationery Services,RS150,Stationery,5302,lcd desktop,31/03/2015,400310,141.57,NET,The Supermarket Online.Com,15516N
Gloucester City Council,23UE,Stationery Services,RS150,Stationery,5302,Stationary,31/03/2015,400280,29.94,NET,Lyreco Uk Ltd,11746G
Gloucester City Council,23UE,Stationery Services,RS150,Stationery,5302,Stationary,31/03/2015,400281,21.76,NET,Lyreco Uk Ltd,11746G
Gloucester City Council,23UE,Stationery Services,RS150,Stationery,5302,Stationary,31/03/2015,400282,10.81,NET,Lyreco Uk Ltd,11746G
Gloucester City Council,23UE,The Arbor,HC501,Catering Provisions -Food,5110,Food,31/03/2015,400271,12.17,NET,Total Produce Gloucester,12645E
Gloucester City Council,23UE,The Arbor,HC501,Catering Provisions -Food,5110,Food,31/03/2015,400285,40.06,NET,Total Produce Gloucester,12645E
Gloucester City Council,23UE,The Arbor,HC501,Catering Provisions -Food,5110,Food,31/03/2015,400286,6.9,NET,Total Produce Gloucester,12645E
Gloucester City Council,23UE,The Arbor,HC501,Catering Provisions -Food,5110,Food,31/03/2015,400287,19.82,NET,Total Produce Gloucester,12645E
Gloucester City Council,23UE,The Arbor,HC501,Catering Provisions -Food,5110,Food,31/03/2015,400425,10.6,NET,Total Produce Gloucester,12645E
Gloucester City Council,23UE,The Arbor,HC501,Catering Provisions -Food,5110,Food,31/03/2015,400426,28.79,NET,Total Produce Gloucester,12645E
Gloucester City Council,23UE,The Arbor,HC501,Catering Provisions -Food,5110,Food,31/03/2015,400427,28.61,NET,Total Produce Gloucester,12645E
Gloucester City Council,23UE,The Arbor,HC501,Catering Provisions -Food,5110,Food,31/03/2015,400428,17.69,NET,Total Produce Gloucester,12645E
Gloucester City Council,23UE,The Arbor,HC501,Catering Provisions -Food,5110,Food,31/03/2015,400429,25.55,NET,Total Produce Gloucester,12645E
Gloucester City Council,23UE,The Arbor,HC501,Catering Provisions -Food,5110,Food,31/03/2015,400430,32.8,NET,Total Produce Gloucester,12645E
Gloucester City Council,23UE,The Arbor,HC501,Catering Provisions -Food,5110,Food,31/03/2015,400431,23.71,NET,Total Produce Gloucester,12645E
Gloucester City Council,23UE,The Arbor,HC501,Catering Provisions -Food,5110,Food,31/03/2015,400432,38.39,NET,Total Produce Gloucester,12645E
Gloucester City Council,23UE,The Arbor,HC501,Catering Provisions -Food,5110,Food,31/03/2015,400433,22.08,NET,Total Produce Gloucester,12645E
Gloucester City Council,23UE,The Arbor,HC501,Catering Provisions -Food,5110,Food,31/03/2015,400434,27.18,NET,Total Produce Gloucester,12645E
Gloucester City Council,23UE,The Arbor,HC501,Catering Provisions -Food,5110,Food,31/03/2015,400435,41.76,NET,Total Produce Gloucester,12645E
Gloucester City Council,23UE,The Arbor,HC501,Catering Provisions -Food,5110,Food,31/03/2015,400436,16.9,NET,Total Produce Gloucester,12645E
Gloucester City Council,23UE,The Arbor,HC501,Catering Provisions -Food,5110,Food,31/03/2015,400437,17.3,NET,Total Produce Gloucester,12645E
Gloucester City Council,23UE,The Arbor,HC501,Catering Provisions -Food,5110,Food,31/03/2015,400438,22.48,NET,Total Produce Gloucester,12645E
Gloucester City Council,23UE,The Arbor,HC501,Catering Provisions -Food,5110,Food,31/03/2015,400439,40.01,NET,Total Produce Gloucester,12645E
Gloucester City Council,23UE,The Arbor,HC501,Catering Provisions -Food,5110,Food,31/03/2015,400440,35.9,NET,Total Produce Gloucester,12645E
Gloucester City Council,23UE,The Arbor,HC501,Catering Provisions -Food,5110,Food,31/03/2015,400441,23.82,NET,Total Produce Gloucester,12645E
Gloucester City Council,23UE,The Arbor,HC501,Catering Provisions -Food,5110,Food,31/03/2015,400442,21.78,NET,Total Produce Gloucester,12645E
Gloucester City Council,23UE,The Arbor,HC501,Catering Provisions -Food,5110,Food,31/03/2015,400443,28.73,NET,Total Produce Gloucester,12645E
Gloucester City Council,23UE,The Arbor,HC501,Catering Provisions -Food,5110,Food,31/03/2015,400447,20.7,NET,Total Produce Gloucester,12645E
Gloucester City Council,23UE,The Arbor,HC501,Catering Provisions -Food,5110,Food,31/03/2015,400448,20.54,NET,Total Produce Gloucester,12645E
Gloucester City Council,23UE,The Arbor,HC501,Catering Provisions -Food,5110,Food,31/03/2015,400449,35.77,NET,Total Produce Gloucester,12645E
Gloucester City Council,23UE,The Arbor,HC501,Catering Provisions -Food,5110,Food,31/03/2015,400450,28.91,NET,Total Produce Gloucester,12645E
Gloucester City Council,23UE,The Arbor,HC501,Catering Provisions -Food,5110,Food,31/03/2015,400453,30.09,NET,Total Produce Gloucester,12645E
Gloucester City Council,23UE,The Arbor,HC501,Catering Provisions -Food,5110,Food,31/03/2015,400454,25.32,NET,Total Produce Gloucester,12645E
Gloucester City Council,23UE,The Arbor,HC501,Catering Provisions -Food,5110,Food,31/03/2015,400455,74.23,NET,Total Produce Gloucester,12645E
Gloucester City Council,23UE,The Arbor,HC501,Catering Provisions -Food,5110,Food,31/03/2015,400456,12.52,NET,Total Produce Gloucester,12645E
Gloucester City Council,23UE,The Arbor,HC501,Catering Provisions -Food,5110,Food,31/03/2015,400457,34.06,NET,Total Produce Gloucester,12645E
Gloucester City Council,23UE,The Arbor,HC501,Catering Provisions -Food,5110,Food,31/03/2015,400458,29.78,NET,Total Produce Gloucester,12645E
Gloucester City Council,23UE,The Arbor,HC501,Catering Provisions -Food,5110,Food,31/03/2015,400459,25.07,NET,Total Produce Gloucester,12645E
Gloucester City Council,23UE,The Arbor,HC501,Catering Provisions -Food,5110,Food,31/03/2015,400460,5,NET,Total Produce Gloucester,12645E
Gloucester City Council,23UE,The Arbor,HC501,Catering Provisions -Food,5110,Food,31/03/2015,400461,20.54,NET,Total Produce Gloucester,12645E
Gloucester City Council,23UE,The Arbor,HC501,Catering Provisions -Food,5110,Food,31/03/2015,400473,252.76,NET,3663,55585U
Gloucester City Council,23UE,The Arbor,HC501,Catering Provisions -Food,5110,Food,31/03/2015,400474,33.12,NET,3663,55585U
Gloucester City Council,23UE,The Arbor,HC501,Catering Provisions -Food,5110,Monthly Machine Warranty,31/03/2015,400363,61.58,NET,Caffeica Ltd,11923J
Gloucester City Council,23UE,The Arbor,HC501,Catering Provisions -Liquor,5111,Drinks,31/03/2015,400400,224.35,NET,Cellar Supplies Cheltenham Ltd,01563L
Gloucester City Council,23UE,The Arbor,HC501,Catering Provisions -Liquor,5111,Drinks,31/03/2015,400401,297.6,NET,Cellar Supplies Cheltenham Ltd,01563L
Gloucester City Council,23UE,The Arbor,HC501,Catering Provisions -Liquor,5111,Drinks,31/03/2015,400444,64.97,NET,Cellar Supplies Cheltenham Ltd,01563L
Gloucester City Council,23UE,The Arbor,HC501,Catering Provisions -Liquor,5111,Drinks,31/03/2015,400451,197.88,NET,Cellar Supplies Cheltenham Ltd,01563L
Gloucester City Council,23UE,Vehicles,RS140,Routine R And M - Vehicles,4011,Repairs,31/03/2015,400380,381.06,NET,Blade Motor Company,13671U
Gloucester City Council,23UE,Blackfriars,LA609,Sale Of Goods And Services,9230,Scrapstore Art Materials,,400352,12,NET,Gloucestershire Resource Centre Ltd,51954Y
Gloucester City Council,23UE,Building Control,PT400,Fees For Services Received,5350,Repairing Garden Wall,,400274,400,NET,T & P Franklin & Sons Ltd,16150A
Gloucester City Council,23UE,Business Transformation & Tech,RT700,Computer Consumables,5422,Various Items,,400342,111.3,NET,Banking Automation Ltd,10352U
Gloucester City Council,23UE,Business Transformation & Tech,RT700,Computer Software Maintenance,5427,CHRIS21 TO 16/01/16,,395711,6587.97,NET,Frontier Software Plc,52154G
Gloucester City Council,23UE,Business Transformation & Tech,RT700,Computer Software Maintenance,5427,CHRIS21 TO 16/01/16,,400510,8440.83,NET,Frontier Software Plc,52154G
Gloucester City Council,23UE,Cemeteries,HC300,Basic Pay - Temporary Staff,2751,TEMPORARY STAFF,,400272,807.3,NET,Anderson Recruitment Ltd,14646H
Gloucester City Council,23UE,Cemeteries,HC300,Major R And M - Vehicles,4010,Blower,,400360,232.5,NET,Garden Machinery Gloucester,55641K
Gloucester City Council,23UE,Cemeteries,HC300,Major R And M - Vehicles,4010,Various Items,,400348,187.76,NET,Garden Machinery Gloucester,55641K
Gloucester City Council,23UE,Cemeteries,HC300,Routine R And M - Vehicles,4011,Various Items,,400347,966.82,NET,Garden Machinery Gloucester,55641K
Gloucester City Council,23UE,City Museum,RY153,Contract Payments,20,Refurbishment of Display Cases,,400086,3377.37,CAP,Showguard Ltd,15047D
Gloucester City Council,23UE,City Museum And Art Gallery,LM200,Advertising And Publicity,5702,28/02/2015 - Parking,,400305,290,NET,Statueman Living Statues,15529D
Gloucester City Council,23UE,City Museum And Art Gallery,LM200,Advertising And Publicity,5702,Explore Gloucestershire 2015,,400321,3000,NET,Cds Publications,59644P
Gloucester City Council,23UE,City Museum And Art Gallery,LM200,Advertising And Publicity,5702,Website Upgrade,,400276,50,NET,Days Out Publishing Ltd,51029W
Gloucester City Council,23UE,REDACTED,REDACTED,REDACTED,REDACTED,REDACTED,,REDACTED,250,NET,REDACTED,REDACTED
Gloucester City Council,23UE,City Museum And Art Gallery,LM200,Events,5952,28/02/2015 - Agreed Fee,,400325,6,NET,Statueman Living Statues,15529D
Gloucester City Council,23UE,REDACTED,REDACTED,REDACTED,REDACTED,REDACTED,,REDACTED,100,NET,REDACTED,REDACTED
Gloucester City Council,23UE,REDACTED,REDACTED,REDACTED,REDACTED,REDACTED,,REDACTED,300,NET,REDACTED,REDACTED
Gloucester City Council,23UE,Client Revs & Bens Contract,RT240,Fees For Services Received,5350,Interpreting 17/02/2015,,400308,82.6,NET,REDACTED,REDACTED
Gloucester City Council,23UE,Community Safety Projects,FP500,Security Equipment Serv/Repair,3038,Hard Disk Drive,,400269,3399.99,NET,Wireless Cctv Ltd,02059U
Gloucester City Council,23UE,Corporate Expenses,RC110,Subscriptions,5600,Annual Membership 15/16,,400329,260,NET,District Councils Network,11624Y
Gloucester City Council,23UE,Council Streetcare Team,HI101,Maint Of Grounds - General,3030,Fence/Gate Mounted,,400337,37.35,NET,Severn Signs Ltd,49841D
Gloucester City Council,23UE,Countryside Unit,LP201,Clothing,5200,Various Clothes Items,,400343,372.24,NET,Werxco Limited,04432Z
Gloucester City Council,23UE,Countryside Unit,LP201,Contract Cleaning,3620,Cleaning,,400350,130,NET,Cv Fisher Cleaning Services,14907C
Gloucester City Council,23UE,Crematorium,HC200,Maint Of Grounds - General,3030,Disposal Unit,,400338,17.28,NET,Minster Cleaning Services,02158R
Gloucester City Council,23UE,Crematorium,HC200,Maint Of Grounds - General,3030,Disposal Unit,,400339,16.78,NET,Minster Cleaning Services,02158R
Gloucester City Council,23UE,Docks Complex - Services,RB100,Service Charges,3020,Docks Service Charge - 01/04 - 30/06 15,,400301,13623.75,NET,Gloucester Quays Management Ltd,13497K
Gloucester City Council,23UE,Environmental Planning,LM340,Fees For Services Received,5350,"Kingsway Open Space, Timber Bollard",,398364,135,NET,Greenfields Garden Services Ltd,48130G
Gloucester City Council,23UE,Equalities,EH102,Fees For Services Received,5350,Payment,,400349,250,NET,Barton & Tredworth Neighbourhood Partnership,09679L
Gloucester City Council,23UE,Folk Museum,LM210,Advertising And Publicity,5702,Explore Gloucestershire 2015,,400321,3000,NET,Cds Publications,59644P
Gloucester City Council,23UE,Folk Museum,LM210,Publications For Sale,5064,Various Items,,400314,486.48,NET,Half Moon Bay Ltd,08240F
Gloucester City Council,23UE,Folk Museum,LM210,Publications For Sale,5064,Various Items,,400330,355.75,NET,Memorabilia Pack Company,04100E
Gloucester City Council,23UE,Gloucester Guildhall,LA100,General Repair/Maint Buildings,3000,Greatcoat,,400317,17.75,NET,Directa Uk Ltd,05387T
Gloucester City Council,23UE,Gloucester Guildhall,LA100,General Repair/Maint Buildings,3000,Silicone Spray,,400316,14.4,NET,Directa Uk Ltd,05387T
Gloucester City Council,23UE,Green Transport Policy,PJ130,Other Minor Supplies Services,5590,Rear Tyre & Check Over,,399341,39,NET,Mitchells,00037Z
Gloucester City Council,23UE,Guildhall Bar And Caf�,LA210,Basic Pay - Duty Assistants,1511,Gloucester Gold,,400358,114,NET,Gloucester Brewery,13373F
Gloucester City Council,23UE,REDACTED,REDACTED,REDACTED,REDACTED,REDACTED,,REDACTED,0,NET,REDACTED,REDACTED
Gloucester City Council,23UE,REDACTED,REDACTED,REDACTED,REDACTED,REDACTED,,REDACTED,260,NET,REDACTED,REDACTED
Gloucester City Council,23UE,Guildhall Events,LA200,Printing,5300,Whats on Bookets,,400327,1330,NET,Paddock Print,03014H
Gloucester City Council,23UE,Hillfield Gardens S106,LY112,Contract Payments,20,Highfield Garden,,400336,340,CAP,D R Howse Services,13597E
Gloucester City Council,23UE,Homelessness,CH120,Basic Pay - Temporary Staff,2751,TEMPORARY STAFF,,399554,703,NET,Building Recruitment Company Ltd,55385E
Gloucester City Council,23UE,Homelessness,CH120,Fees For Services Received,5350,Medical Form,,400335,20.5,NET,Dr P Lush & Partners,05680S
Gloucester City Council,23UE,Homelessness,CH120,Removal And Storage Fees,5513,storage charges,,400332,50.14,NET,Advanced Removals & Storage Ltd,57142R
Gloucester City Council,23UE,Homelessness,CH120,Removal And Storage Fees,5513,storage charges,,400331,117.32,NET,Advanced Removals & Storage Ltd,57142R
Gloucester City Council,23UE,Homelessness,CH120,Removal And Storage Fees,5513,storage charges,,400333,195.54,NET,Advanced Removals & Storage Ltd,57142R
Gloucester City Council,23UE,Homelessness,CH120,Removal And Storage Fees,5513,storage charges,,400334,117.32,NET,Advanced Removals & Storage Ltd,57142R
Gloucester City Council,23UE,Homelessness Prevention,CH122,Basic Pay - Temporary Staff,2751,TEMPORARY STAFF,,400376,1015.71,NET,Building Recruitment Company Ltd,55385E
Gloucester City Council,23UE,Homelessness Prevention,CH122,Grants To Voluntary Orgs-Rents,7100,Homeless Emergency Bed,,400368,2379,NET,P3 (People Potential Possibilities),13809N
Gloucester City Council,23UE,Homelessness Prevention,CH122,Grants To Voluntary Orgs-Rents,7100,Homeless Emergency Bed,,400369,2379,NET,P3 (People Potential Possibilities),13809N
Gloucester City Council,23UE,Human Resources,EH100,Fees For Services Received,5350,Training Course,,400322,292.5,NET,Gloucestershire County Council,18650D
Gloucester City Council,23UE,Investment Property,RB500,Fees For Services Received,5350,9 Grosvenor House,,400359,900,NET,Downing Bentley,15564B
Gloucester City Council,23UE,Legal Services,RS200,Basic Pay - Temporary Staff,2751,TEMPORARY STAFF,,400357,293.04,NET,Premiere Employment Group Ltd,55468Z
Gloucester City Council,23UE,Marketing Gloucester Charges,RC433,Fees For Services Received,5350,Additional Events Staff - Annual Cost,,400313,7662.25,NET,Marketing Gloucester Ltd,08925E
Gloucester City Council,23UE,Parks Contract Management,LP100,Maint Of Grounds - General,3030,Various Items,,400277,125.36,NET,Kompan Ltd,03575J
Gloucester City Council,23UE,Play Area Refurbishment,LY071,Contract Payments,20,Various Items,,400304,118.99,CAP,Broxap Ltd,01141U
Gloucester City Council,23UE,Retail Market - Landlord,HM300,Cleaning Materials,3600,Various Cleaning Materials,,400346,426.39,NET,Core Hygiene Ltd,03885P
Gloucester City Council,23UE,Stationery Services,RS150,Stationery,5302,Paper,,400309,519.7,NET,Premier Paper Group Ltd,09166Y
Gloucester City Council,23UE,Summer Festival,LT300,General Repair/Maint Buildings,3000,Subscription 15/16,,400351,38,NET,Gloucestershire Resource Centre Ltd,51954Y
Gloucester City Council,23UE,The Arbor,HC501,Catering Provisions -Food,5110,Fairtrade Beans,,400318,391.77,NET,Caffeica Ltd,11923J
Gloucester City Council,23UE,The Arbor,HC501,Catering Provisions -Food,5110,Food,,400402,185.04,NET,3663,55585U
Gloucester City Council,23UE,The Arbor,HC501,Catering Provisions -Food,5110,Food,,400403,207.36,NET,3663,55585U
Gloucester City Council,23UE,The Arbor,HC501,Catering Provisions -Food,5110,Food,,400404,325.8,NET,3663,55585U
Gloucester City Council,23UE,The Arbor,HC501,Catering Provisions -Food,5110,Food,,400445,166.61,NET,3663,55585U
Gloucester City Council,23UE,The Arbor,HC501,Catering Provisions -Food,5110,Food,,400452,25.36,NET,3663,55585U
Gloucester City Council,23UE,The Arbor,HC501,Catering Provisions -Food,5110,Food,,400462,442.91,NET,3663,55585U
Gloucester City Council,23UE,The Arbor,HC501,Catering Provisions -Food,5110,Food,,400467,340.27,NET,3663,55585U
Gloucester City Council,23UE,The Arbor,HC501,Catering Provisions -Food,5110,Food,,400468,339.44,NET,3663,55585U
Gloucester City Council,23UE,The Arbor,HC501,Catering Provisions -Food,5110,Food,,400469,242.74,NET,3663,55585U
Gloucester City Council,23UE,The Arbor,HC501,Catering Provisions -Food,5110,Food,,400470,395,NET,3663,55585U
Gloucester City Council,23UE,The Arbor,HC501,Catering Provisions -Food,5110,Food,,400471,5.52,NET,3663,55585U
Gloucester City Council,23UE,The Arbor,HC501,Catering Provisions -Food,5110,Liquor,,391562,258.83,NET,Cellar Supplies Cheltenham Ltd,01563L
Gloucester City Council,23UE,The Arbor,HC501,Cleaning Materials,3600,Food,,400405,31.71,NET,3663,55585U
Gloucester City Council,23UE,The Arbor,HC501,Cleaning Materials,3600,Food,,400406,60.71,NET,3663,55585U
Gloucester City Council,23UE,The Arbor,HC501,Cleaning Materials,3600,Food,,400446,34.64,NET,3663,55585U
Gloucester City Council,23UE,The Arbor,HC501,Cleaning Materials,3600,Food,,400472,130.33,NET,3663,55585U
Gloucester City Council,23UE,The Arbor,HC501,Other Minor Supplies Services,5590,Flowers,,400407,38.46,NET,Carols Florist,01274X
Gloucester City Council,23UE,The Fleece,RB530,Fees For Services Received,5350,The Fleece Hotel,,400273,4000,NET,Alder King*,02367D
Gloucester City Council,23UE,Tourism Marketing,LT100,Cleaning Materials,3600,Cleaning Materials,,400300,21.03,NET,Robert Hall Business Equipment Ltd,19925B
Gloucester City Council,23UE,Vehicles,RS140,Fuel,4012,Fuel,,400379,133.87,NET,Allstar Business Solutions Ltd (Arval),06594A
,,,,,,,,Sum:,2524251.01,,,
